Workbook

Sheet INGRESO DE DATOS
A8: Tarifas efectivas a partir del 1ro de enero de 2023
A9: (Para nuevos negocios emitidos a partir del 1 de enero 2023 y renovaciones de pólizas emitidas a partir del 1 de abril 2018)
A12: INGRESE LOS DATOS DEL PROPUESTO ASEGURADO:
C14: Nombre del Asegurado Principal: | D14: Nombre
D16: Número de Adultos: | G16: 2 | H16: Número de Hijos: | J16: 2
F18: Edad de Titular: | G18: 32 | H18: Edad de Cónyuge: | J18: 46
F20: Descuento: | G20: 0
A23: INGRESE EL NOMBRE DE LA AGENCIA ASESORA:
C25: Intermediario: | D25: Agente / Agencia
A29: ESCOJA EL PRODUCTO PARA VISUALIZAR LA COTIZACION RESPECTIVA:

Sheet Complete (hidden)
A1: Cotización de Seguro Médico Internacional
A2: Producto: COMPLETE
A4: COBERTURA
A5: Cobertura máxima por año | B5: $7,000,000
A6: Área de cobertura | B6: Mundial | D6: Nombre del Asegurado: | E6: =+'INGRESO DE DATOS'!$D$14 -> Nombre
A7: Red de proveedores en EE.UU. | B7: Abierta
A8: Red de proveedores fuera de EE.UU. | B8: Abierta | D8: Intermediario: | E8: =+'INGRESO DE DATOS'!$D$25 -> Agente / Agencia
A9: Cobertura extendida para dependientes en caso de muerte de asegurado principal | B9: 2 años
A10: BENEFICIOS POR HOSPITALIZACION | D10: Fecha: | E10: =+TODAY() -> 2022-12-20 | G10: =IF('INGRESO DE DATOS'!G20>0,"Descuento","") ->  | H10: =IF('INGRESO DE DATOS'!G20>0,'INGRESO DE DATOS'!G20,"") -> 
A11: Habitación y alimentación dentro de la red | B11: 1
A12: Unidad de cuidados intensivos dentro de la red | B12: 1 | F12: Numero de Adultos: | G12: =+'INGRESO DE DATOS'!G16 -> 2 | I12: Edad de Titular: | J12: =+'INGRESO DE DATOS'!$G$18 -> 32
A13: Honorarios médicos y de enfermería | B13: 1
A14: Medicamentos por receta durante la hospitalización | B14: 1 | F14: Numero de Hijos: | G14: =+'INGRESO DE DATOS'!$J$16 -> 2 | I14: Edad de Conyuge: | J14: =+'INGRESO DE DATOS'!$J$18 -> 46
A15: Cama para acompañante de menor (por día) | B15: $300
A16: BENEFICIOS POR PROCEDIMIENTOS AMBULATORIOS | F16: Coberturas Adicionales: | H16: Complicaciones de Maternidad (+ $500,000)
A17: Cirugía ambulatoria | B17: 1 | H17: FALSE
A18: Visitas a médicos y especialistas (por visita) | B18: 1 | D18: Deducibles
A19: Medicamentos después de hospitalización o tratamiento ambulatorio | B19: 1 | E19: PLAN 1 | F19: PLAN 2 | G19: PLAN 3 | H19: PLAN 4 | I19: PLAN 5 | J19: PLAN 6
A20: Medicamentos por receta por tratamiento ambulatorio (en consulta externa) | B20: 1 | D20: Dentro del pais de residencia | E20: n/a | F20: 1000 | G20: 2000 | H20: 5000 | I20: 10000 | J20: 20000
A21: Procedimiento de Diagnóstico | B21: 1 | D21: Fuera del pais de residencia | E21: n/a | F21: 2000 | G21: 3000 | H21: 5000 | I21: 10000 | J21: 20000
A22: Fisioterapia y rehabilitación | B22: 1
A23: Atención médica en el hogar (por día) | B23: 1 | D23: Tarifas Anuales
A24: Reconocimiento medico de rutina (no aplica deducible) | B24: $300 | D24: Prima Titular | E24: n/a | F24: =VLOOKUP($J$12,Tablas!$A$6:$H$29,4,TRUE) -> 8094 | G24: =VLOOKUP($J$12,Tablas!$A$6:$H$29,5,TRUE) -> 6019 | H24: =VLOOKUP($J$12,Tablas!$A$6:$H$29,6,TRUE) -> 4504 | I24: =VLOOKUP($J$12,Tablas!$A$6:$H$29,7,TRUE) -> 3442 | J24: =VLOOKUP($J$12,Tablas!$A$6:$H$29,8,TRUE) -> 2633
A25: BENEFICIOS POR MATERNIDAD | D25: Prima Cónyuge | E25: n/a | F25: =IF($G$12=1,0,(VLOOKUP($J$14,Tablas!$A$6:$H$29,4,TRUE))) -> 11736 | G25: =IF($G$12=1,0,(VLOOKUP($J$14,Tablas!$A$6:$H$29,5,TRUE))) -> 8246 | H25: =IF($G$12=1,0,(VLOOKUP($J$14,Tablas!$A$6:$H$29,6,TRUE))) -> 6272 | I25: =IF($G$12=1,0,(VLOOKUP($J$14,Tablas!$A$6:$H$29,7,TRUE))) -> 4756 | J25: =IF($G$12=1,0,(VLOOKUP($J$14,Tablas!$A$6:$H$29,8,TRUE))) -> 3643
A26: Embarazo, maternidad y parto | B26: $7,500 | D26: Primas Hijos | E26: n/a | F26: =IF($G$14=0,0,(VLOOKUP($G$14,Tablas!$A$30:$H$32,4,TRUE))) -> 6424 | G26: =IF($G$14=0,0,(VLOOKUP($G$14,Tablas!$A$30:$H$32,5,TRUE))) -> 2985 | H26: =IF($G$14=0,0,(VLOOKUP($G$14,Tablas!$A$30:$H$32,6,TRUE))) -> 2329 | I26: =IF($G$14=0,0,(VLOOKUP($G$14,Tablas!$A$30:$H$32,7,TRUE))) -> 1973 | J26: =IF($G$14=0,0,(VLOOKUP($G$14,Tablas!$A$30:$H$32,8,TRUE))) -> 1469
A27: Cobertura provisional del recién nacido (no aplica deducible) | B27: $30,000 | D27: Anexo: Complicaciones de Maternidad | E27: n/a | F27: =+IF($H$17=FALSE,0,Tablas!D$33) -> 0 | G27: =+IF($H$17=FALSE,0,Tablas!E$33) -> 0 | H27: =+IF($H$17=FALSE,0,Tablas!F$33) -> 0 | I27: =+IF($H$17=FALSE,0,Tablas!G$33) -> 0 | J27: =+IF($H$17=FALSE,0,Tablas!H$33) -> 0
A28: Almacenamiento de sangre del cordón umbilical (no aplica deducible) | B28: $1,000 | D28: PRIMA NETA | E28: n/a | F28: =SUM(F24:F27) -> 26254 | G28: =SUM(G24:G27) -> 17250 | H28: =SUM(H24:H27) -> 13105 | I28: =SUM(I24:I27) -> 10171 | J28: =SUM(J24:J27) -> 7745
A29: Complicaciones del embarazo, maternidad y el parto | B29: $1,000,000 | D29: =IF('INGRESO DE DATOS'!G20>0,"Descuento","") ->  | E29: n/a | F29: =IF('INGRESO DE DATOS'!$G$20>0,-(F24+F25+F26)*'INGRESO DE DATOS'!$G$20,0) -> 0 | G29: =IF('INGRESO DE DATOS'!$G$20>0,-(G24+G25+G26)*'INGRESO DE DATOS'!$G$20,0) -> 0 | H29: =IF('INGRESO DE DATOS'!$G$20>0,-(H24+H25+H26)*'INGRESO DE DATOS'!$G$20,0) -> 0 | I29: =IF('INGRESO DE DATOS'!$G$20>0,-(I24+I25+I26)*'INGRESO DE DATOS'!$G$20,0) -> 0 | J29: =IF('INGRESO DE DATOS'!$G$20>0,-(J24+J25+J26)*'INGRESO DE DATOS'!$G$20,0) -> 0
A30: BENEFICIOS POR TRANSPORTACION MEDICA | D30: Costo Administrativo Anual | E30: n/a | F30: 75 | G30: 75 | H30: 75 | I30: 75 | J30: 75
A31: Ambulancia aérea (no aplica deducible por emergencia) | B31: $125,000 | D31: IVA (12%) | E31: n/a | F31: =+(F28+F29+F30)*12% -> 3159.48 | G31: =+(G28+G29+G30)*12% -> 2079 | H31: 1581.6 | I31: 1229.52 | J31: =+(J28+J29+J30)*12% -> 938.4
A32: Viaje de regreso (Asegurado y 1 acompañante) | B32: 1 | D32: TOTAL | E32: n/a | F32: =SUM(F28:F31) -> 29488.48 | G32: =SUM(G28:G31) -> 19404 | H32: 14761.6 | I32: 11475.52 | J32: =SUM(J28:J31) -> 8758.4
A33: Ambulancia terrestre (no aplica deducible por emergencia) | B33: 1
A34: Repatriación de restos mortales | B34: 1 | D34: Tarifas Semestrales
A35: OTROS BENEFICIOS | D35: Prima Titular | E35: n/a | F35: =VLOOKUP($J$12,Tablas!$A$39:$H$62,4,TRUE) -> 3563.19 | G35: =VLOOKUP($J$12,Tablas!$A$39:$H$62,5,TRUE) -> 2650 | H35: =VLOOKUP($J$12,Tablas!$A$39:$H$62,6,TRUE) -> 1982.73 | I35: =VLOOKUP($J$12,Tablas!$A$39:$H$62,7,TRUE) -> 1514.74 | J35: =VLOOKUP($J$12,Tablas!$A$39:$H$62,8,TRUE) -> 1158.58
A36: Tratamiento del cáncer | B36: 1 | D36: Prima Cónyuge | E36: n/a | F36: =IF($G$12=1,0,(VLOOKUP($J$14,Tablas!$A$39:$H$62,4,TRUE))) -> 5166.97 | G36: =IF($G$12=1,0,(VLOOKUP($J$14,Tablas!$A$39:$H$62,5,TRUE))) -> 3629.97 | H36: =IF($G$12=1,0,(VLOOKUP($J$14,Tablas!$A$39:$H$62,6,TRUE))) -> 2761.3 | I36: =IF($G$12=1,0,(VLOOKUP($J$14,Tablas!$A$39:$H$62,7,TRUE))) -> 2093.5 | J36: =IF($G$12=1,0,(VLOOKUP($J$14,Tablas!$A$39:$H$62,8,TRUE))) -> 1603.78
A37: Insuficiencia renal (diálisis) | B37: 1 | D37: Primas Hijos | E37: n/a | F37: =IF($G$14=0,0,(VLOOKUP($G$14,Tablas!$A$63:$H$65,4,TRUE))) -> 1803.06 | G37: =IF($G$14=0,0,(VLOOKUP($G$14,Tablas!$A$63:$H$65,5,TRUE))) -> 1313.87 | H37: =IF($G$14=0,0,(VLOOKUP($G$14,Tablas!$A$63:$H$65,6,TRUE))) -> 1025.02 | I37: =IF($G$14=0,0,(VLOOKUP($G$14,Tablas!$A$63:$H$65,7,TRUE))) -> 868.14 | J37: =IF($G$14=0,0,(VLOOKUP($G$14,Tablas!$A$63:$H$65,8,TRUE))) -> 646.07
A38: Procedimientos de trasplante | B38: $1,500,000 | D38: Anexo: Complicaciones de Maternidad | E38: n/a | F38: =+IF($F$17=FALSE,0,Tablas!D$66) -> 0 | G38: =+IF($F$17=FALSE,0,Tablas!E$66) -> 0 | H38: =+IF($F$17=FALSE,0,Tablas!F$66) -> 0 | I38: =+IF($F$17=FALSE,0,Tablas!G$66) -> 0 | J38: =+IF($F$17=FALSE,0,Tablas!H$66) -> 0
A39: Preparación del donante | B39: $50,000 | D39: PRIMA NETA | E39: n/a | F39: =SUM(F35:F38) -> 10533.22 | G39: =SUM(G35:G38) -> 7593.84 | H39: =SUM(H35:H38) -> 5769.05 | I39: =SUM(I35:I38) -> 4476.38 | J39: =SUM(J35:J38) -> 3408.43
A40: Condiciones congénitas y/o hereditarias antes de los 18 años | B40: $1,000,000 | D40: =IF('INGRESO DE DATOS'!G20>0,"Descuento","") ->  | E40: n/a | F40: =IF('INGRESO DE DATOS'!$G$20>0,-(F35+F36+F37)*'INGRESO DE DATOS'!$G$20,0) -> 0 | G40: =IF('INGRESO DE DATOS'!$G$20>0,-(G35+G36+G37)*'INGRESO DE DATOS'!$G$20,0) -> 0 | H40: =IF('INGRESO DE DATOS'!$G$20>0,-(H35+H36+H37)*'INGRESO DE DATOS'!$G$20,0) -> 0 | I40: =IF('INGRESO DE DATOS'!$G$20>0,-(I35+I36+I37)*'INGRESO DE DATOS'!$G$20,0) -> 0 | J40: =IF('INGRESO DE DATOS'!$G$20>0,-(J35+J36+J37)*'INGRESO DE DATOS'!$G$20,0) -> 0
A41: Condiciones congénitas y/o hereditarias después de los 18 años | B41: 1 | D41: Costo Administrativo Anual | E41: n/a | F41: 75 | G41: 75 | H41: 75 | I41: 75 | J41: 75
A42: Protesis - Brazos y piernas artificiales (Máximo $120,000 vitalicio) | B42: $30,000 | D42: IVA (12%) | E42: n/a | F42: =+(F39+F40+F41)*12% -> 1272.9864 | G42: =+(G39+G40+G41)*12% -> 920.2608 | H42: 701.286 | I42: 546.1656 | J42: =+(J39+J40+J41)*12% -> 418.0116
A43: Tratamientos especiales | B43: 1 | D43: TOTAL (1ra Cuota) | E43: n/a | F43: =SUM(F39:F42) -> 11881.2064 | G43: =SUM(G39:G42) -> 8589.1008 | H43: =SUM(H39:H42) -> 6545.336 | I43: =SUM(I39:I42) -> 5097.5456 | J43: =SUM(J39:J42) -> 3901.4416
A44: Sala de emergencias | B44: 1 | D44: TOTAL (2da Cuota) | E44: n/a | F44: =F39+F40+F42-(F41*0.12) -> 11797.2064 | G44: =G39+G40+G42-(G41*0.12) -> 8505.1008 | H44: 6461.336 | I44: 5013.5456 | J44: =J39+J40+J42-(J41*0.12) -> 3817.4416
A45: Tratamiento dental de emergencia | B45: 1
A46: Residencia para pacientes terminales y cuidados paliativos | B46: 1 | D46: Tarifas Semestrales
A47: Terapeuta complementario | B47: 100% (máx. 20 sesiones) | D47: Prima Titular | E47: n/a | F47: =VLOOKUP($J$12,Tablas!$A$923:$H$946,4,TRUE) -> 2225.85 | G47: =VLOOKUP($J$12,Tablas!$A$923:$H$946,5,TRUE) -> 1655.225 | H47: =VLOOKUP($J$12,Tablas!$A$923:$H$946,6,TRUE) -> 1238.6 | I47: =VLOOKUP($J$12,Tablas!$A$923:$H$946,7,TRUE) -> 946.55 | J47: =VLOOKUP($J$12,Tablas!$A$923:$H$946,8,TRUE) -> 724.075
A48: Actividades peligrosas | B48: 100% (cubre profesionales) | D48: Prima Cónyuge | E48: n/a | F48: =IF($G$12=1,0,(VLOOKUP($J$14,Tablas!$A$923:$H$946,4,TRUE))) -> 3227.4 | G48: =IF($G$12=1,0,(VLOOKUP($J$14,Tablas!$A$923:$H$946,5,TRUE))) -> 2267.65 | H48: =IF($G$12=1,0,(VLOOKUP($J$14,Tablas!$A$923:$H$946,6,TRUE))) -> 1724.8 | I48: =IF($G$12=1,0,(VLOOKUP($J$14,Tablas!$A$923:$H$946,7,TRUE))) -> 1307.9 | J48: =IF($G$12=1,0,(VLOOKUP($J$14,Tablas!$A$923:$H$946,8,TRUE))) -> 1001.825
A49: VIH/SIDA | B49: Por accidente | D49: Primas Hijos | E49: n/a | F49: =IF($G$14=0,0,(VLOOKUP($G$14,Tablas!$A$947:$H$949,4,TRUE))) -> 1766.6 | G49: =IF($G$14=0,0,(VLOOKUP($G$14,Tablas!$A$63:$H$65,5,TRUE))) -> 1313.87 | H49: =IF($G$14=0,0,(VLOOKUP($G$14,Tablas!$A$63:$H$65,6,TRUE))) -> 1025.02 | I49: =IF($G$14=0,0,(VLOOKUP($G$14,Tablas!$A$63:$H$65,7,TRUE))) -> 868.14 | J49: =IF($G$14=0,0,(VLOOKUP($G$14,Tablas!$A$63:$H$65,8,TRUE))) -> 646.07
A50: ANEXOS ADICIONALES | D50: Anexo: Complicaciones de Maternidad | E50: n/a | F50: =+IF($F$17=FALSE,0,Tablas!D$950) -> 0 | G50: =+IF($F$17=FALSE,0,Tablas!E$950) -> 0 | H50: =+IF($F$17=FALSE,0,Tablas!F$950) -> 0 | I50: =+IF($F$17=FALSE,0,Tablas!G$950) -> 0 | J50: =+IF($F$17=FALSE,0,Tablas!H$950) -> 0
A51: Anexo cobertura complicaciones perinatales y del embarazo | B51: $500,000 | D51: PRIMA NETA | E51: n/a | F51: =SUM(F47:F50) -> 7219.85 | G51: =SUM(G47:G50) -> 5236.745 | H51: =SUM(H47:H50) -> 3988.42 | I51: =SUM(I47:I50) -> 3122.59 | J51: =SUM(J47:J50) -> 2371.97
D52: =IF('INGRESO DE DATOS'!G34>0,"Descuento","") ->  | E52: n/a | F52: =IF('INGRESO DE DATOS'!$G$20>0,-(F47+F48+F49)*'INGRESO DE DATOS'!$G$20,0) -> 0 | G52: =IF('INGRESO DE DATOS'!$G$20>0,-(G47+G48+G49)*'INGRESO DE DATOS'!$G$20,0) -> 0 | H52: =IF('INGRESO DE DATOS'!$G$20>0,-(H47+H48+H49)*'INGRESO DE DATOS'!$G$20,0) -> 0 | I52: =IF('INGRESO DE DATOS'!$G$20>0,-(I47+I48+I49)*'INGRESO DE DATOS'!$G$20,0) -> 0 | J52: =IF('INGRESO DE DATOS'!$G$20>0,-(J47+J48+J49)*'INGRESO DE DATOS'!$G$20,0) -> 0
D53: Costo Administrativo Anual | E53: n/a | F53: 75 | G53: 75 | H53: 75 | I53: 75 | J53: 75
A54: Bupa Guatemala, Compañía de Seguros, S.A. | D54: IVA (12%) | E54: n/a | F54: =+(F51+F52+F53)*12% -> 875.382 | G54: =+(G51+G52+G53)*12% -> 637.4094 | H54: 487.6104 | I54: 383.7108 | J54: =+(J51+J52+J53)*12% -> 293.6364
A55: 5 Avenida 5-55 Zona 14, Europlaza World Business Center, Torre 3, Nivel 11, Guatemala | D55: TOTAL (1ra Cuota) | E55: n/a | F55: =SUM(F51:F54) -> 8170.232 | G55: =SUM(G51:G54) -> 5949.1544 | H55: =SUM(H51:H54) -> 4551.0304 | I55: =SUM(I51:I54) -> 3581.3008 | J55: =SUM(J51:J54) -> 2740.6064
A56: PBX: 2300-8000 / www.bupasalud.com / servicioguatemala@bupalatinamerica.com | D56: TOTAL (2da a 4ta Cuota) | E56: n/a | F56: =F51+F52+F54-(F53*0.12) -> 8086.232 | G56: =G51+G52+G54-(G53*0.12) -> 5865.1544 | H56: 4467.0304 | I56: 3497.3008 | J56: =J51+J52+J54-(J53*0.12) -> 2656.6064
D58: Tarifas en US $ - Válidas desde 01 Ene 2018
D59: Este presupuesto solamente tiene carácter informativo y en ningún momento expresa compromiso legal para suministrarle cobertura de seguro. La emisión de una póliza de seguro Bupa está sujeta a todas las evaluaciones de riesgo por parte de Bupa y a la recepción de todos los pagos de prima requeridos.

Sheet Secure Care (hidden)
A1: Cotización de Seguro Médico Internacional
A2: Producto: Essential Care
A6: BUPA ESSENTIAL CARE | D6: Nombre del Asegurado: | E6: =+'INGRESO DE DATOS'!$D$14 -> Nombre
D8: Intermediario: | E8: =+'INGRESO DE DATOS'!$D$25 -> Agente / Agencia
D10: Fecha: | E10: =+TODAY() -> 2022-12-20 | G10: =IF('INGRESO DE DATOS'!G20>0,"Descuento","") ->  | H10: =IF('INGRESO DE DATOS'!G20>0,'INGRESO DE DATOS'!G20,"") -> 
F12: Numero de Adultos: | G12: =+'INGRESO DE DATOS'!$G$16 -> 2 | I12: Edad de Titular: | J12: =+'INGRESO DE DATOS'!$G$18 -> 32
F14: Numero de Hijos: | G14: =+'INGRESO DE DATOS'!$J$16 -> 2 | I14: Edad de Conyuge: | J14: =+'INGRESO DE DATOS'!$J$18 -> 46
F16: FALSE | H16: Complicaciones de Maternidad (+ $500,000)
F18: FALSE | G18: FALSE | H18: Trasplante de Órganos (+ $500,000)
D20: Deducibles
E21: PLAN 1 | F21: PLAN 2 | G21: PLAN 3 | H21: PLAN 4 | I21: PLAN 5 | J21: PLAN 6
D22: Dentro del pais de residencia | E22: n/a | F22: 1000 | G22: 2000 | H22: 5000 | I22: 10000 | J22: 20000
D23: Fuera del pais de residencia | E23: n/a | F23: 2000 | G23: 3000 | H23: 5000 | I23: 10000 | J23: 20000
D25: Tarifas Anuales
D26: Prima Titular | E26: n/a | F26: =VLOOKUP($J$12,Tablas!$A$140:$H$163,4,TRUE) -> 4479 | G26: =VLOOKUP($J$12,Tablas!$A$140:$H$163,5,TRUE) -> 3668 | H26: =VLOOKUP($J$12,Tablas!$A$140:$H$163,6,TRUE) -> 2780 | I26: =VLOOKUP($J$12,Tablas!$A$140:$H$163,7,TRUE) -> 2393 | J26: =VLOOKUP($J$12,Tablas!$A$140:$H$163,8,TRUE) -> 1816
D27: Prima Cónyuge | E27: n/a | F27: =IF($G$12=1,0,(VLOOKUP($J$14,Tablas!$A$140:$H$163,4,TRUE))) -> 6371 | G27: =IF($G$12=1,0,(VLOOKUP($J$14,Tablas!$A$140:$H$163,5,TRUE))) -> 5520 | H27: =IF($G$12=1,0,(VLOOKUP($J$14,Tablas!$A$140:$H$163,6,TRUE))) -> 4054 | I27: =IF($G$12=1,0,(VLOOKUP($J$14,Tablas!$A$140:$H$163,7,TRUE))) -> 3514 | J27: =IF($G$12=1,0,(VLOOKUP($J$14,Tablas!$A$140:$H$163,8,TRUE))) -> 2626
D28: Primas Hijos | E28: n/a | F28: =IF($G$14=0,0,(VLOOKUP($G$14,Tablas!$A$164:$H$166,4,TRUE))) -> 2896 | G28: =IF($G$14=0,0,(VLOOKUP($G$14,Tablas!$A$164:$H$166,5,TRUE))) -> 1508 | H28: =IF($G$14=0,0,(VLOOKUP($G$14,Tablas!$A$164:$H$166,6,TRUE))) -> 1352 | I28: =IF($G$14=0,0,(VLOOKUP($G$14,Tablas!$A$164:$H$166,7,TRUE))) -> 1159 | J28: =IF($G$14=0,0,(VLOOKUP($G$14,Tablas!$A$164:$H$166,8,TRUE))) -> 850
D29: Anexo: Complicaciones de Maternidad | E29: n/a | F29: =+IF($F$16=FALSE,0,Tablas!D$167) -> 0 | G29: =+IF($F$16=FALSE,0,Tablas!E$167) -> 0 | H29: =+IF($F$16=FALSE,0,Tablas!F$167) -> 0 | I29: =+IF($F$16=FALSE,0,Tablas!G$167) -> 0 | J29: =+IF($F$16=FALSE,0,Tablas!H$167) -> 0
D30: Anexo: Trasplante Organos | E30: n/a | F30: =IF($F$18=FALSE,0,Tablas!D$341) -> 0 | G30: =IF($F$18=FALSE,0,Tablas!E$341) -> 0 | H30: =IF($F$18=FALSE,0,Tablas!F$341) -> 0 | I30: =IF($F$18=FALSE,0,Tablas!G$341) -> 0 | J30: =IF($F$18=FALSE,0,Tablas!H$341) -> 0
D31: PRIMA NETA | E31: n/a | F31: =SUM(F26:F30) -> 13746 | G31: =SUM(G26:G30) -> 10696 | H31: 8186 | I31: 7066 | J31: 5292
D32: =IF('INGRESO DE DATOS'!G20>0,"Descuento","") ->  | E32: n/a | F32: =IF('INGRESO DE DATOS'!$G$20>0,-(F26+F27+F28)*'INGRESO DE DATOS'!$G$20,0) -> 0 | G32: =IF('INGRESO DE DATOS'!$G$20>0,-(G26+G27+G28)*'INGRESO DE DATOS'!$G$20,0) -> 0 | H32: =IF('INGRESO DE DATOS'!$G$20>0,-(H26+H27+H28)*'INGRESO DE DATOS'!$G$20,0) -> 0 | I32: =IF('INGRESO DE DATOS'!$G$20>0,-(I26+I27+I28)*'INGRESO DE DATOS'!$G$20,0) -> 0 | J32: =IF('INGRESO DE DATOS'!$G$20>0,-(J26+J27+J28)*'INGRESO DE DATOS'!$G$20,0) -> 0
D33: Costo Administrativo Anual | E33: n/a | F33: 75 | G33: 75 | H33: 75 | I33: 75 | J33: 75
D34: IVA (12%) | E34: n/a | F34: =+(F31+F32+F33)*12% -> 1658.52 | G34: =+(G31+G32+G33)*12% -> 1292.52 | H34: 991.32 | I34: 856.92 | J34: =+(J31+J32+J33)*12% -> 644.04
D35: TOTAL | E35: n/a | F35: =SUM(F31:F34) -> 15479.52 | G35: =SUM(G31:G34) -> 12063.52 | H35: =SUM(H31:H34) -> 9252.32 | I35: =SUM(I31:I34) -> 7997.92 | J35: =SUM(J31:J34) -> 6011.04
D37: Tarifas Semestrales
D38: Prima Titular | E38: n/a | F38: =VLOOKUP($J$12,Tablas!$A$173:$H$196,4,TRUE) -> 1971.6 | G38: =VLOOKUP($J$12,Tablas!$A$173:$H$196,5,TRUE) -> 1614.38 | H38: =VLOOKUP($J$12,Tablas!$A$173:$H$196,6,TRUE) -> 1223.77 | I38: =VLOOKUP($J$12,Tablas!$A$173:$H$196,7,TRUE) -> 1053.11 | J38: =VLOOKUP($J$12,Tablas!$A$173:$H$196,8,TRUE) -> 799.24
D39: Prima Cónyuge | E39: n/a | F39: =IF($G$12=1,0,(VLOOKUP($J$14,Tablas!$A$173:$H$196,4,TRUE))) -> 2804.76 | G39: =IF($G$12=1,0,(VLOOKUP($J$14,Tablas!$A$173:$H$196,5,TRUE))) -> 2430.05 | H39: =IF($G$12=1,0,(VLOOKUP($J$14,Tablas!$A$173:$H$196,6,TRUE))) -> 1784.51 | I39: =IF($G$12=1,0,(VLOOKUP($J$14,Tablas!$A$173:$H$196,7,TRUE))) -> 1546.54 | J39: =IF($G$12=1,0,(VLOOKUP($J$14,Tablas!$A$173:$H$196,8,TRUE))) -> 1155.93
D40: Primas Hijos | E40: n/a | F40: =IF($G$14=0,0,(VLOOKUP($G$14,Tablas!$A$197:$H$199,4,TRUE))) -> 1274.65 | G40: =IF($G$14=0,0,(VLOOKUP($G$14,Tablas!$A$197:$H$199,5,TRUE))) -> 663.56 | H40: =IF($G$14=0,0,(VLOOKUP($G$14,Tablas!$A$197:$H$199,6,TRUE))) -> 594.66 | I40: =IF($G$14=0,0,(VLOOKUP($G$14,Tablas!$A$197:$H$199,7,TRUE))) -> 509.86 | J40: =IF($G$14=0,0,(VLOOKUP($G$14,Tablas!$A$197:$H$199,8,TRUE))) -> 373.65
D41: Anexo: Complicaciones de Maternidad | E41: n/a | F41: =+IF($F$16=FALSE,0,Tablas!D$200) -> 0 | G41: =+IF($F$16=FALSE,0,Tablas!E$200) -> 0 | H41: =+IF($F$16=FALSE,0,Tablas!F$200) -> 0 | I41: =+IF($F$16=FALSE,0,Tablas!G$200) -> 0 | J41: =+IF($F$16=FALSE,0,Tablas!H$200) -> 0
D42: Anexo: Trasplante Organos | E42: n/a | F42: =IF($F$18=FALSE,0,Tablas!D$413) -> 0 | G42: =IF($F$18=FALSE,0,Tablas!E$413) -> 0 | H42: =IF($F$18=FALSE,0,Tablas!F$413) -> 0 | I42: =IF($F$18=FALSE,0,Tablas!G$413) -> 0 | J42: =IF($F$18=FALSE,0,Tablas!H$413) -> 0
D43: PRIMA NETA | E43: n/a | F43: =SUM(F38:F42) -> 6051.01 | G43: =SUM(G38:G42) -> 4707.99 | H43: 3602.94 | I43: 3109.51 | J43: 2328.82
D44: =IF('INGRESO DE DATOS'!G20>0,"Descuento","") ->  | E44: n/a | F44: =IF('INGRESO DE DATOS'!$G$20>0,-(F38+F39+F40)*'INGRESO DE DATOS'!$G$20,0) -> 0 | G44: =IF('INGRESO DE DATOS'!$G$20>0,-(G38+G39+G40)*'INGRESO DE DATOS'!$G$20,0) -> 0 | H44: =IF('INGRESO DE DATOS'!$G$20>0,-(H38+H39+H40)*'INGRESO DE DATOS'!$G$20,0) -> 0 | I44: =IF('INGRESO DE DATOS'!$G$20>0,-(I38+I39+I40)*'INGRESO DE DATOS'!$G$20,0) -> 0 | J44: =IF('INGRESO DE DATOS'!$G$20>0,-(J38+J39+J40)*'INGRESO DE DATOS'!$G$20,0) -> 0
D45: Costo Administrativo Anual | E45: n/a | F45: 75 | G45: 75 | H45: 75 | I45: 75 | J45: 75
D46: IVA (12%) | E46: n/a | F46: =+(F43+F44+F45)*12% -> 735.1212 | G46: =+(G43+G44+G45)*12% -> 573.9588 | H46: 441.3528 | I46: 382.1412 | J46: =+(J43+J44+J45)*12% -> 288.4584
D47: TOTAL (1ra Cuota) | E47: n/a | F47: =SUM(F43:F46) -> 6861.1312 | G47: =SUM(G43:G46) -> 5356.9488 | H47: =SUM(H43:H46) -> 4119.2928 | I47: =SUM(I43:I46) -> 3566.6512 | J47: =SUM(J43:J46) -> 2692.2784
D48: TOTAL (2da Cuota) | E48: n/a | F48: =F43+F44+F46-(F45*0.12) -> 6777.1312 | G48: =G43+G44+G46-(G45*0.12) -> 5272.9488 | H48: 4035.2928 | I48: 3482.6512 | J48: 2608.2784
D50: Tarifas Trimestrales
D51: Prima Titular | E51: n/a | F51: =VLOOKUP($J$12,Tablas!$A$957:$H$980,4,TRUE) -> 1231.725 | G51: =VLOOKUP($J$12,Tablas!$A$957:$H$980,5,TRUE) -> 1008.7 | H51: =VLOOKUP($J$12,Tablas!$A$957:$H$980,6,TRUE) -> 764.5 | I51: =VLOOKUP($J$12,Tablas!$A$957:$H$980,7,TRUE) -> 658.075 | J51: =VLOOKUP($J$12,Tablas!$A$957:$H$980,8,TRUE) -> 499.4
D52: Prima Cónyuge | E52: n/a | F52: =IF($G$12=1,0,(VLOOKUP($J$14,Tablas!$A$957:$H$980,4,TRUE))) -> 1752.025 | G52: =IF($G$12=1,0,(VLOOKUP($J$14,Tablas!$A$957:$H$980,5,TRUE))) -> 1518 | H52: =IF($G$12=1,0,(VLOOKUP($J$14,Tablas!$A$957:$H$980,6,TRUE))) -> 1114.85 | I52: =IF($G$12=1,0,(VLOOKUP($J$14,Tablas!$A$957:$H$980,7,TRUE))) -> 966.35 | J52: =IF($G$12=1,0,(VLOOKUP($J$14,Tablas!$A$957:$H$980,8,TRUE))) -> 722.15
D53: Primas Hijos | E53: n/a | F53: =IF($G$14=0,0,(VLOOKUP($G$14,Tablas!$A$981:$H$983,4,TRUE))) -> 796.4 | G53: =IF($G$14=0,0,(VLOOKUP($G$14,Tablas!$A$981:$H$983,5,TRUE))) -> 414.7 | H53: =IF($G$14=0,0,(VLOOKUP($G$14,Tablas!$A$981:$H$983,6,TRUE))) -> 371.8 | I53: =IF($G$14=0,0,(VLOOKUP($G$14,Tablas!$A$981:$H$983,7,TRUE))) -> 318.725 | J53: =IF($G$14=0,0,(VLOOKUP($G$14,Tablas!$A$981:$H$983,8,TRUE))) -> 233.75
D54: Anexo: Complicaciones de Maternidad | E54: n/a | F54: =+IF($F$16=FALSE,0,Tablas!D$984) -> 0 | G54: =+IF($F$16=FALSE,0,Tablas!E$984) -> 0 | H54: =+IF($F$16=FALSE,0,Tablas!F$984) -> 0 | I54: =+IF($F$16=FALSE,0,Tablas!G$984) -> 0 | J54: =+IF($F$16=FALSE,0,Tablas!H$984) -> 0
D55: Anexo: Trasplante Organos | E55: n/a | F55: =IF($F$18=FALSE,0,Tablas!D$413) -> 0 | G55: =IF($F$18=FALSE,0,Tablas!E$413) -> 0 | H55: =IF($F$18=FALSE,0,Tablas!F$413) -> 0 | I55: =IF($F$18=FALSE,0,Tablas!G$413) -> 0 | J55: =IF($F$18=FALSE,0,Tablas!H$413) -> 0
D56: PRIMA NETA | E56: n/a | F56: =SUM(F51:F55) -> 3780.15 | G56: =SUM(G51:G55) -> 2941.4 | H56: 2251.15 | I56: 1943.15 | J56: 1455.3
D57: =IF('INGRESO DE DATOS'!G35>0,"Descuento","") ->  | E57: n/a | F57: =IF('INGRESO DE DATOS'!$G$20>0,-(F51+F52+F53)*'INGRESO DE DATOS'!$G$20,0) -> 0 | G57: =IF('INGRESO DE DATOS'!$G$20>0,-(G51+G52+G53)*'INGRESO DE DATOS'!$G$20,0) -> 0 | H57: =IF('INGRESO DE DATOS'!$G$20>0,-(H51+H52+H53)*'INGRESO DE DATOS'!$G$20,0) -> 0 | I57: =IF('INGRESO DE DATOS'!$G$20>0,-(I51+I52+I53)*'INGRESO DE DATOS'!$G$20,0) -> 0 | J57: =IF('INGRESO DE DATOS'!$G$20>0,-(J51+J52+J53)*'INGRESO DE DATOS'!$G$20,0) -> 0
D58: Costo Administrativo Anual | E58: n/a | F58: 75 | G58: 75 | H58: 75 | I58: 75 | J58: 75
D59: IVA (12%) | E59: n/a | F59: =+(F56+F57+F58)*12% -> 462.618 | G59: =+(G56+G57+G58)*12% -> 361.968 | H59: 279.138 | I59: 242.178 | J59: =+(J56+J57+J58)*12% -> 183.636
D60: TOTAL (1ra Cuota) | E60: n/a | F60: =SUM(F56:F59) -> 4317.768 | G60: =SUM(G56:G59) -> 3378.368 | H60: =SUM(H56:H59) -> 2605.288 | I60: =SUM(I56:I59) -> 2260.328 | J60: =SUM(J56:J59) -> 1713.936
D61: TOTAL (2da a 4ta Cuota) | E61: n/a | F61: =F56+F57+F59-(F58*0.12) -> 4233.768 | G61: =G56+G57+G59-(G58*0.12) -> 3294.368 | H61: 2521.288 | I61: 2176.328 | J61: 1629.936
D63: Tarifas en US $ - Válidas desde 01 Ene 2018
D64: Este presupuesto solamente tiene carácter informativo y en ningún momento expresa compromiso legal para suministrarle cobertura de seguro. La emisión de una póliza de seguro Bupa está sujeta a todas las evaluaciones de riesgo por parte de Bupa y a la recepción de todos los pagos de prima requeridos.
D70: Bupa Guatemala, Compañía de Seguros, S.A.
D71: 5 Avenida 5-55 Zona 14, Europlaza World Business Center, Torre 3, Nivel 11, Guatemala
D72: PBX: 2300-8000 / www.bupasalud.com / servicioguatemala@bupalatinamerica.com

Sheet Advantage (LA) (hidden)
A10: Cotización de Seguro Médico Internacional - Bupa ADVANTAGE Care (cobertura solo Latinoamérica)
A12: Bupa Advantage Care (cobertura solo en Latinoamérica) | H12: =+'INGRESO DE DATOS'!$D$14 -> Nombre
A13: Cobertura Máxima anual | C13: US $ 3,500,000
A14: Cobertura Geografica | C14: Limitada a Latinoamérica excluyendo México | H14: =+'INGRESO DE DATOS'!$D$25 -> Agente / Agencia
A15: Condiciones médicas cubiertas | C15: Todas las condiciones médicas
A16: Redes de proveedores | C16: Red de Proveedores "Bupa Advantage" | J16: =+'INGRESO DE DATOS'!$G$16 -> 2 | M16: =+'INGRESO DE DATOS'!$G$18 -> 32
A17: Opciones fuera de la Red | C17: NO, solo en casos de emergencia | F17: FECHA DE COTIZACION :
A18: Requiere preautorización | C18: SI, 30% de penalización por omitir prenotificación | F18: =NOW() -> 2022-12-20T16:06:35.490 | J18: =+'INGRESO DE DATOS'!$J$16 -> 2 | M18: =+'INGRESO DE DATOS'!$J$18 -> 46
A20: Número máximo de días de hospitalización | C20: Ilimitado | I20: TRUE | K20: COMPLICACIONES DE MATERNIDAD
A21: Habitación y alimentación | C21: 100% dentro de Red Bupa
C22: "UCR" para L.A. en emergencias fuera de Red Bupa | I22: TRUE | K22: TRASPLANTE DE ORGANOS
A23: Cuidados Intensivos | C23: 100% dentro de Red Bupa
C24: "UCR" para L.A. en emergencias fuera de Red Bupa
A25: Cobertura de Maternidad | C25: $5,000 (Excepto planes 4,5, y 6) | F25: Deducibles | H25: PLAN 1 | I25: PLAN 2 | J25: PLAN 3 | K25: PLAN 4 | L25: PLAN 5 | M25: PLAN 6
A26: Cobertura Provisional de Recién Nacido | C26: $30,000 por los primeros 90 días | F26: Dentro del pais de residencia | H26: n/a | I26: 1000 | J26: 2000 | K26: 5000 | L26: 10000 | M26: 20000
A27: Cuidado del Recién Nacido saludable | C27: Ya incluída dentro del beneficio de Maternidad | F27: Fuera del pais de residencia | H27: n/a | I27: 2000 | J27: 3000 | K27: 5000 | L27: 10000 | M27: 20000
A28: Cobertura de Complicaciones de Maternidad | C28: Disponible a través de cobertura opcional adicional
A29: Trasplante de Organos | C29: $1,000,000 de por vida, por diagnóstico
A30: Condiciones congénitas y hereditarias | C30: <18 años $300,000 de por vida; >=18 al 100% | F30: Tarifas Anuales
A31: Coberturas opcionales (Riders) | C31: Complicaciones de Maternidad por $500,000 | F31: Prima de Titular : | H31: n/a | I31: =VLOOKUP($M$16,Tablas!$A$420:$H$443,4,TRUE) -> 4550 | J31: =VLOOKUP($M$16,Tablas!$A$420:$H$443,5,TRUE) -> 3480 | K31: =VLOOKUP($M$16,Tablas!$A$420:$H$443,6,TRUE) -> 2690 | L31: =VLOOKUP($M$16,Tablas!$A$420:$H$443,7,TRUE) -> 2059 | M31: =VLOOKUP($M$16,Tablas!$A$420:$H$443,8,TRUE) -> 1587
C32: Trasplante de órganos por $ 300,000 adicionales | F32: Prima de Cónyuge | H32: n/a | I32: =IF($J$16=1,0,(VLOOKUP($M$18,Tablas!$A$420:$H$443,4,TRUE))) -> 6617 | J32: =IF($J$16=1,0,(VLOOKUP($M$18,Tablas!$A$420:$H$443,5,TRUE))) -> 5063 | K32: =IF($J$16=1,0,(VLOOKUP($M$18,Tablas!$A$420:$H$443,6,TRUE))) -> 3827 | L32: =IF($J$16=1,0,(VLOOKUP($M$18,Tablas!$A$420:$H$443,7,TRUE))) -> 2988 | M32: =IF($J$16=1,0,(VLOOKUP($M$18,Tablas!$A$420:$H$443,8,TRUE))) -> 2317
A33: Acompañamiento de menores hospitalizados | C33: $300 por día | F33: Primas Hijos : | H33: n/a | I33: =IF($J$18=0,0,(VLOOKUP($J$18,Tablas!$A$444:$H$446,4,TRUE))) -> 2567 | J33: =IF($J$18=0,0,(VLOOKUP($J$18,Tablas!$A$444:$H$446,5,TRUE))) -> 1768 | K33: =IF($J$18=0,0,(VLOOKUP($J$18,Tablas!$A$444:$H$446,6,TRUE))) -> 1402 | L33: =IF($J$18=0,0,(VLOOKUP($J$18,Tablas!$A$444:$H$446,7,TRUE))) -> 1246 | M33: =IF($J$18=0,0,(VLOOKUP($J$18,Tablas!$A$444:$H$446,8,TRUE))) -> 837
A34: Ambulancia aérea | C34: $100,000 por año y ticket aéreo de retorno | F34: Prima Rider Complic. Maternidad | H34: n/a | I34: =+IF($I$20=FALSE,0,Tablas!D$447) -> 225 | J34: =+IF($I$20=FALSE,0,Tablas!E$447) -> 225 | K34: =+IF($I$20=FALSE,0,Tablas!F$447) -> 225 | L34: =+IF($I$20=FALSE,0,Tablas!G$447) -> 225 | M34: =+IF($I$20=FALSE,0,Tablas!H$447) -> 225
A35: Repatriación restos mortales | C35: 1 | F35: Prima Rider Trasplante Organos | H35: n/a | I35: =IF($I$22=FALSE,0,Tablas!D$448) -> 300 | J35: =IF($I$22=FALSE,0,Tablas!E$448) -> 300 | K35: =IF($I$22=FALSE,0,Tablas!F$448) -> 300 | L35: =IF($I$22=FALSE,0,Tablas!G$448) -> 300 | M35: =IF($I$22=FALSE,0,Tablas!H$448) -> 300
A36: Medicamentos por receta | C36: $6,000 por Asegurado, por año póliza | F36: TOTAL PRIMA NETA : | H36: n/a | I36: =SUM(I31:I35) -> 14259 | J36: 10836 | K36: 8444 | L36: 6818 | M36: 5266
A37: Almacenamiento de sangre de cordon umbilical | C37: $500 (Excepto planes 4,5, y 6) | F37: Costo Administrativo Anual : | H37: n/a | I37: 75 | J37: 75 | K37: 75 | L37: 75 | M37: 75
F38: GRAN TOTAL : | H38: n/a | I38: =SUM(I36:I37) -> 14334 | J38: =SUM(J36:J37) -> 10911 | K38: =SUM(K36:K37) -> 8519 | L38: =SUM(L36:L37) -> 6893 | M38: =SUM(M36:M37) -> 5341
A39: Atención médica en el hogar | C39: 100% de usual/acostumbrado y razonable
A40: Rehabilitación | C40: 100% de usual/acostumbrado y razonable | F40: Tarifas Semestrales
A41: Residencia y cuidados paliativos | C41: 100% de usual/acostumbrado y razonable | F41: Prima de Titular : | H41: n/a | I41: =VLOOKUP($M$16,Tablas!$A$453:$H$476,4,TRUE) -> 2411.5 | J41: =VLOOKUP($M$16,Tablas!$A$453:$H$476,5,TRUE) -> 1844.4 | K41: =VLOOKUP($M$16,Tablas!$A$453:$H$476,6,TRUE) -> 1425.7 | L41: =VLOOKUP($M$16,Tablas!$A$453:$H$476,7,TRUE) -> 1091.27 | M41: =VLOOKUP($M$16,Tablas!$A$453:$H$476,8,TRUE) -> 841.11
A42: Cobertura de actividades peligrosas | C42: 1 | F42: Prima de Cónyuge | H42: n/a | I42: =IF($J$16=1,0,(VLOOKUP($M$18,Tablas!$A$453:$H$476,4,TRUE))) -> 3507.01 | J42: =IF($J$16=1,0,(VLOOKUP($M$18,Tablas!$A$453:$H$476,5,TRUE))) -> 2683.39 | K42: =IF($J$16=1,0,(VLOOKUP($M$18,Tablas!$A$453:$H$476,6,TRUE))) -> 2028.31 | L42: =IF($J$16=1,0,(VLOOKUP($M$18,Tablas!$A$453:$H$476,7,TRUE))) -> 1583.64 | M42: =IF($J$16=1,0,(VLOOKUP($M$18,Tablas!$A$453:$H$476,8,TRUE))) -> 1228.01
A43: Chequeos generales de rutina | C43: Hasta US$150 por año póliza.Sin deducible | F43: Primas Hijos : | H43: n/a | I43: =IF($J$18=0,0,(VLOOKUP($J$18,Tablas!$A$477:$H$479,4,TRUE))) -> 1360.51 | J43: =IF($J$18=0,0,(VLOOKUP($J$18,Tablas!$A$477:$H$479,5,TRUE))) -> 937.04 | K43: =IF($J$18=0,0,(VLOOKUP($J$18,Tablas!$A$477:$H$479,6,TRUE))) -> 743.06 | L43: =IF($J$18=0,0,(VLOOKUP($J$18,Tablas!$A$477:$H$479,7,TRUE))) -> 660.38 | M43: =IF($J$18=0,0,(VLOOKUP($J$18,Tablas!$A$477:$H$479,8,TRUE))) -> 443.61
A44: Cobertura de VIH, SIDA, CAS | C44: Solo como efecto de transfusión de sangre | F44: Prima Rider Complic. Maternidad | H44: n/a | I44: =+IF($I$20=FALSE,0,Tablas!D$480) -> 119.25 | J44: =+IF($I$20=FALSE,0,Tablas!E$480) -> 119.25 | K44: =+IF($I$20=FALSE,0,Tablas!F$480) -> 119.25 | L44: =+IF($I$20=FALSE,0,Tablas!G$480) -> 119.25 | M44: =+IF($I$20=FALSE,0,Tablas!H$480) -> 119.25
A45: Cobertura de brazos y piernas artificiales | C45: $30,000 por año y hasta $120,000 de por vida | F45: Prima Rider Trasplante Organos | H45: n/a | I45: =IF($I$22=FALSE,0,Tablas!D$481) -> 159 | J45: =IF($I$22=FALSE,0,Tablas!E$481) -> 159 | K45: =IF($I$22=FALSE,0,Tablas!F$481) -> 159 | L45: =IF($I$22=FALSE,0,Tablas!G$481) -> 159 | M45: =IF($I$22=FALSE,0,Tablas!H$481) -> 159
A46: Cobertura extendida para dependientes en caso de muerte de asegurado principal | C46: 2 años sin costo | F46: TOTAL PRIMA NETA : | H46: n/a | I46: =SUM(I41:I45) -> 7557.27 | J46: 5743.08 | K46: 4475.32 | L46: 3613.54 | M46: 2790.98
F47: Costo Administrativo Anual : | H47: n/a | I47: 75 | J47: 75 | K47: 75 | L47: 75 | M47: 75
F48: GRAN TOTAL (1ra Cuota) : | H48: n/a | I48: =SUM(I46:I47) -> 7632.27 | J48: =SUM(J46:J47) -> 5818.08 | K48: =SUM(K46:K47) -> 4550.32 | L48: =SUM(L46:L47) -> 3688.54 | M48: =SUM(M46:M47) -> 2865.98
F49: GRAN TOTAL (2da Cuota) : | H49: n/a | I49: =I46 -> 7557.27 | J49: =J46 -> 5743.08 | K49: 4475.32 | L49: 3613.54 | M49: 2790.98
F50: Tarifas en US $ - Válidas desde 01 Ene 2013

Sheet Classic
D8: Cotización de Seguro Médico Internacional
D9: Bupa Classic Care
A10: BUPA Classic Care
D11: Nombre del Asegurado: | E11: =+'INGRESO DE DATOS'!$D$14 -> Nombre
D13: Intermediario: | E13: =+'INGRESO DE DATOS'!$D$25 -> Agente / Agencia
D15: Fecha: | E15: =+TODAY() -> 2022-12-20 | G15: =IF('INGRESO DE DATOS'!G20>0,"Descuento","") ->  | H15: =IF('INGRESO DE DATOS'!G20>0,'INGRESO DE DATOS'!G20,"") -> 
F17: Numero de Adultos: | G17: =+'INGRESO DE DATOS'!$G$16 -> 2 | I17: Edad de Titular: | J17: =+'INGRESO DE DATOS'!$G$18 -> 32
F19: Numero de Hijos: | G19: =+'INGRESO DE DATOS'!$J$16 -> 2 | I19: Edad de Conyuge: | J19: =+'INGRESO DE DATOS'!$J$18 -> 46
H21: Complicaciones de Maternidad
D22: FALSE
D23: FALSE | H23: Trasplante de Órganos
D24: FALSE
H25: Eliminación de Deducible
D27: Deducibles
E28: PLAN 1 | F28: PLAN 2 | G28: PLAN 3 | H28: PLAN 4 | I28: PLAN 5 | J28: PLAN 6
D29: Dentro del pais de residencia | E29: n/a | F29: 1000 | G29: 2000 | H29: 5000 | I29: 10000 | J29: 20000
D30: Fuera del pais de residencia | E30: n/a | F30: 2000 | G30: 3000 | H30: 5000 | I30: 10000 | J30: 20000
D32: Tarifas Anuales
D33: Prima Titular | E33: n/a | F33: =VLOOKUP($J$17,Tablas!$A$487:$H$549,4,TRUE) -> 3473.95 | G33: =VLOOKUP($J$17,Tablas!$A$487:$H$549,5,TRUE) -> 2859.4 | H33: =VLOOKUP($J$17,Tablas!$A$487:$H$549,6,TRUE) -> 1849.6 | I33: =VLOOKUP($J$17,Tablas!$A$487:$H$549,7,TRUE) -> 1317.5 | J33: =VLOOKUP($J$17,Tablas!$A$487:$H$549,8,TRUE) -> 935.85
D34: Prima Cónyuge | E34: n/a | F34: =IF($G$17=1,0,(VLOOKUP($J$19,Tablas!$A$487:$H$549,4,TRUE))) -> 4998 | G34: =IF($G$17=1,0,(VLOOKUP($J$19,Tablas!$A$487:$H$549,5,TRUE))) -> 4276.35 | H34: =IF($G$17=1,0,(VLOOKUP($J$19,Tablas!$A$487:$H$549,6,TRUE))) -> 2810.1 | I34: =IF($G$17=1,0,(VLOOKUP($J$19,Tablas!$A$487:$H$549,7,TRUE))) -> 1926.1 | J34: =IF($G$17=1,0,(VLOOKUP($J$19,Tablas!$A$487:$H$549,8,TRUE))) -> 1343.85
D35: Primas Hijos | E35: n/a | F35: =IF($G$19=0,0,(VLOOKUP($G$19,Tablas!$A$550:$H$552,4,TRUE))) -> 2324.75 | G35: =IF($G$19=0,0,(VLOOKUP($G$19,Tablas!$A$550:$H$552,5,TRUE))) -> 1206.15 | H35: =IF($G$19=0,0,(VLOOKUP($G$19,Tablas!$A$550:$H$552,6,TRUE))) -> 939.25 | I35: =IF($G$19=0,0,(VLOOKUP($G$19,Tablas!$A$550:$H$552,7,TRUE))) -> 662.15 | J35: =IF($G$19=0,0,(VLOOKUP($G$19,Tablas!$A$550:$H$552,8,TRUE))) -> 458.15
D36: Anexo: Complicaciones de Maternidad | E36: n/a | F36: =+IF($D$22=FALSE,0,Tablas!D$553) -> 0 | G36: =+IF($D$22=FALSE,0,Tablas!E$553) -> 0 | H36: =+IF($D$22=FALSE,0,Tablas!F$553) -> 0 | I36: =+IF($D$22=FALSE,0,Tablas!G$553) -> 0 | J36: =+IF($D$22=FALSE,0,Tablas!H$553) -> 0
D37: Anexo: Trasplante Organos | E37: n/a | F37: =IF($D$23=FALSE,0,Tablas!D$554) -> 0 | G37: =IF($D$23=FALSE,0,Tablas!E$554) -> 0 | H37: =IF($D$23=FALSE,0,Tablas!F$554) -> 0 | I37: =IF($D$23=FALSE,0,Tablas!G$554) -> 0 | J37: =IF($D$23=FALSE,0,Tablas!H$554) -> 0
D38: Anexo: Eliminacion de Deducible | E38: n/a | F38: =IF($D$24=FALSE,0,Tablas!D$555) -> 0 | G38: =IF($D$24=FALSE,0,Tablas!E$555) -> 0 | H38: =IF($D$24=FALSE,0,Tablas!F$555) -> 0 | I38: =IF($D$24=FALSE,0,Tablas!G$555) -> 0 | J38: =IF($D$24=FALSE,0,Tablas!H$555) -> 0
D39: PRIMA NETA | E39: n/a | F39: =SUM(F33:F38) -> 10796.7 | G39: =SUM(G33:G38) -> 8341.9 | H39: 5598.95 | I39: 3905.75 | J39: 2737.85
D40: =IF('INGRESO DE DATOS'!G20>0,"Descuento","") ->  | E40: n/a | F40: =IF('INGRESO DE DATOS'!$G$20>0,-(F33+F34+F35)*'INGRESO DE DATOS'!$G$20,0) -> 0 | G40: =IF('INGRESO DE DATOS'!$G$20>0,-(G33+G34+G35)*'INGRESO DE DATOS'!$G$20,0) -> 0 | H40: =IF('INGRESO DE DATOS'!$G$20>0,-(H33+H34+H35)*'INGRESO DE DATOS'!$G$20,0) -> 0 | I40: =IF('INGRESO DE DATOS'!$G$20>0,-(I33+I34+I35)*'INGRESO DE DATOS'!$G$20,0) -> 0 | J40: =IF('INGRESO DE DATOS'!$G$20>0,-(J33+J34+J35)*'INGRESO DE DATOS'!$G$20,0) -> 0
D41: Costo Administrativo Anual | E41: n/a | F41: 75 | G41: 75 | H41: 75 | I41: 75 | J41: 75
D42: IVA (12%) | E42: n/a | F42: =+(F39+F40+F41)*12% -> 1304.604 | G42: =+(G39+G40+G41)*12% -> 1010.028 | H42: 680.874 | I42: 477.69 | J42: =+(J39+J40+J41)*12% -> 337.542
D43: TOTAL | E43: n/a | F43: =SUM(F39:F42) -> 12176.304 | G43: =SUM(G39:G42) -> 9426.928 | H43: =SUM(H39:H42) -> 6354.824 | I43: =SUM(I39:I42) -> 4458.44 | J43: =SUM(J39:J42) -> 3150.392
D45: Tarifas Semestrales
D46: Prima Titular | E46: n/a | F46: =VLOOKUP($J$17,Tablas!$A$559:$H$621,4,TRUE) -> 1841.1935 | G46: =VLOOKUP($J$17,Tablas!$A$559:$H$621,5,TRUE) -> 1515.482 | H46: =VLOOKUP($J$17,Tablas!$A$559:$H$621,6,TRUE) -> 980.288 | I46: =VLOOKUP($J$17,Tablas!$A$559:$H$621,7,TRUE) -> 698.275 | J46: =VLOOKUP($J$17,Tablas!$A$559:$H$621,8,TRUE) -> 496.0005
D47: Prima Cónyuge | E47: n/a | F47: =IF($G$17=1,0,(VLOOKUP($J$19,Tablas!$A$559:$H$621,4,TRUE))) -> 2648.94 | G47: =IF($G$17=1,0,(VLOOKUP($J$19,Tablas!$A$559:$H$621,5,TRUE))) -> 2266.4655 | H47: =IF($G$17=1,0,(VLOOKUP($J$19,Tablas!$A$559:$H$621,6,TRUE))) -> 1489.353 | I47: =IF($G$17=1,0,(VLOOKUP($J$19,Tablas!$A$559:$H$621,7,TRUE))) -> 1020.833 | J47: =IF($G$17=1,0,(VLOOKUP($J$19,Tablas!$A$559:$H$621,8,TRUE))) -> 712.2405
D48: Primas Hijos | E48: n/a | F48: =IF($G$19=0,0,(VLOOKUP($G$19,Tablas!$A$622:$H$624,4,TRUE))) -> 1232.1175 | G48: =IF($G$19=0,0,(VLOOKUP($G$19,Tablas!$A$622:$H$624,5,TRUE))) -> 639.2595 | H48: =IF($G$19=0,0,(VLOOKUP($G$19,Tablas!$A$622:$H$624,6,TRUE))) -> 497.8025 | I48: =IF($G$19=0,0,(VLOOKUP($G$19,Tablas!$A$622:$H$624,7,TRUE))) -> 350.9395 | J48: =IF($G$19=0,0,(VLOOKUP($G$19,Tablas!$A$622:$H$624,8,TRUE))) -> 242.8195
D49: Anexo: Complicaciones de Maternidad | E49: n/a | F49: =+IF($D$22=FALSE,0,Tablas!D$625) -> 0 | G49: =+IF($D$22=FALSE,0,Tablas!E$625) -> 0 | H49: =+IF($D$22=FALSE,0,Tablas!F$625) -> 0 | I49: =+IF($D$22=FALSE,0,Tablas!G$625) -> 0 | J49: =+IF($D$22=FALSE,0,Tablas!H$625) -> 0
D50: Anexo: Trasplante Organos | E50: n/a | F50: =IF($D$23=FALSE,0,Tablas!D$626) -> 0 | G50: =IF($D$23=FALSE,0,Tablas!E$626) -> 0 | H50: =IF($D$23=FALSE,0,Tablas!F$626) -> 0 | I50: =IF($D$23=FALSE,0,Tablas!G$626) -> 0 | J50: =IF($D$23=FALSE,0,Tablas!H$626) -> 0
D51: Anexo: Eliminacion de Deducible | E51: n/a | F51: =IF($D$24=FALSE,0,Tablas!D$627) -> 0 | G51: =IF($D$24=FALSE,0,Tablas!E$627) -> 0 | H51: =IF($D$24=FALSE,0,Tablas!F$627) -> 0 | I51: =IF($D$24=FALSE,0,Tablas!G$627) -> 0 | J51: =IF($D$24=FALSE,0,Tablas!H$627) -> 0
D52: PRIMA NETA | E52: n/a | F52: =SUM(F46:F51) -> 5722.251 | G52: =SUM(G46:G51) -> 4421.207 | H52: 2967.4435 | I52: 2070.0475 | J52: 1451.0605
D53: =IF('INGRESO DE DATOS'!G20>0,"Descuento","") ->  | E53: n/a | F53: =IF('INGRESO DE DATOS'!$G$20>0,-(F46+F47+F48)*'INGRESO DE DATOS'!$G$20,0) -> 0 | G53: =IF('INGRESO DE DATOS'!$G$20>0,-(G46+G47+G48)*'INGRESO DE DATOS'!$G$20,0) -> 0 | H53: =IF('INGRESO DE DATOS'!$G$20>0,-(H46+H47+H48)*'INGRESO DE DATOS'!$G$20,0) -> 0 | I53: =IF('INGRESO DE DATOS'!$G$20>0,-(I46+I47+I48)*'INGRESO DE DATOS'!$G$20,0) -> 0 | J53: =IF('INGRESO DE DATOS'!$G$20>0,-(J46+J47+J48)*'INGRESO DE DATOS'!$G$20,0) -> 0
D54: Costo Administrativo Anual | E54: n/a | F54: 75 | G54: 75 | H54: 75 | I54: 75 | J54: 75
D55: IVA (12%) | E55: n/a | F55: =+(F52+F53+F54)*0.12 -> 695.67012 | G55: =+(G52+G53+G54)*12% -> 539.54484 | H55: 365.09322 | I55: 257.4057 | J55: =+(J52+J53+J54)*12% -> 183.12726
D56: (1ra Cuota) | E56: n/a | F56: =SUM(F52:F55) -> 6492.92112 | G56: =SUM(G52:G55) -> 5035.75184 | H56: =SUM(H52:H55) -> 3407.53672 | I56: =SUM(I52:I55) -> 2402.4532 | J56: =SUM(J52:J55) -> 1709.18776
D57: (2da Cuota) | E57: n/a | F57: =F52+F53+F55-(F54*0.12) -> 6408.92112 | G57: =G52+G53+G55-(G54*0.12) -> 4951.75184 | H57: 3323.53672 | I57: 2318.4532 | J57: =J52+J53+J55-(J54*0.12) -> 1625.18776
D58: TOTAL | E58: n/a | F58: =SUM(F56:F57) -> 12901.84224 | G58: =SUM(G56:G57) -> 9987.50368 | H58: 6731.07344 | I58: 4720.9064 | J58: 3334.37552
D61: Tarifas Trimestrales
D62: Prima Titular | E62: n/a | F62: =VLOOKUP($J$17,Tablas!$A$1065:$H$1127,4,TRUE) -> 955.33625 | G62: =VLOOKUP($J$17,Tablas!$A$1065:$H$1127,5,TRUE) -> 786.335 | H62: =VLOOKUP($J$17,Tablas!$A$1065:$H$1127,6,TRUE) -> 508.64 | I62: =VLOOKUP($J$17,Tablas!$A$1065:$H$1127,7,TRUE) -> 362.3125 | J62: =VLOOKUP($J$17,Tablas!$A$1065:$H$1127,8,TRUE) -> 257.35875
D63: Prima Cónyuge | E63: n/a | F63: =IF($G$17=1,0,(VLOOKUP($J$19,Tablas!$A$1065:$H$1127,4,TRUE))) -> 1374.45 | G63: =IF($G$17=1,0,(VLOOKUP($J$19,Tablas!$A$1065:$H$1127,5,TRUE))) -> 1175.99625 | H63: =IF($G$17=1,0,(VLOOKUP($J$19,Tablas!$A$1065:$H$1127,6,TRUE))) -> 772.7775 | I63: =IF($G$17=1,0,(VLOOKUP($J$19,Tablas!$A$1065:$H$1127,7,TRUE))) -> 529.6775 | J63: =IF($G$17=1,0,(VLOOKUP($J$19,Tablas!$A$1065:$H$1127,8,TRUE))) -> 369.55875
D64: Primas Hijos | E64: n/a | F64: =IF($G$19=0,0,(VLOOKUP($G$19,Tablas!$A$1128:$H$1130,4,TRUE))) -> 639.30625 | G64: =IF($G$19=0,0,(VLOOKUP($G$19,Tablas!$A$1128:$H$1130,5,TRUE))) -> 331.69125 | H64: =IF($G$19=0,0,(VLOOKUP($G$19,Tablas!$A$1128:$H$1130,6,TRUE))) -> 258.29375 | I64: =IF($G$19=0,0,(VLOOKUP($G$19,Tablas!$A$1128:$H$1130,7,TRUE))) -> 182.09125 | J64: =IF($G$19=0,0,(VLOOKUP($G$19,Tablas!$A$1128:$H$1130,8,TRUE))) -> 125.99125
D65: Anexo: Complicaciones de Maternidad | E65: n/a | F65: =+IF($D$22=FALSE,0,Tablas!D$1131) -> 0 | G65: =+IF($D$22=FALSE,0,Tablas!E$1131) -> 0 | H65: =+IF($D$22=FALSE,0,Tablas!F$1131) -> 0 | I65: =+IF($D$22=FALSE,0,Tablas!G$1131) -> 0 | J65: =+IF($D$22=FALSE,0,Tablas!H$1131) -> 0
D66: Anexo: Trasplante Organos | E66: n/a | F66: =IF($D$23=FALSE,0,Tablas!D$1132) -> 0 | G66: =IF($D$23=FALSE,0,Tablas!E$1132) -> 0 | H66: =IF($D$23=FALSE,0,Tablas!F$1132) -> 0 | I66: =IF($D$23=FALSE,0,Tablas!G$1132) -> 0 | J66: =IF($D$23=FALSE,0,Tablas!H$1132) -> 0
D67: Anexo: Eliminacion de Deducible | E67: n/a | F67: =IF($D$24=FALSE,0,Tablas!D$1133) -> 0 | G67: =IF($D$24=FALSE,0,Tablas!E$1133) -> 0 | H67: =IF($D$24=FALSE,0,Tablas!F$1133) -> 0 | I67: =IF($D$24=FALSE,0,Tablas!G$1133) -> 0 | J67: =IF($D$24=FALSE,0,Tablas!H$1133) -> 0
D68: PRIMA NETA | E68: n/a | F68: =SUM(F62:F67) -> 2969.0925 | G68: =SUM(G62:G67) -> 2294.0225 | H68: 1539.71125 | I68: 1074.08125 | J68: 752.90875
D69: =IF('INGRESO DE DATOS'!G36>0,"Descuento","") ->  | E69: n/a | F69: =IF('INGRESO DE DATOS'!$G$20>0,-(F62+F63+F64)*'INGRESO DE DATOS'!$G$20,0) -> 0 | G69: =IF('INGRESO DE DATOS'!$G$20>0,-(G62+G63+G64)*'INGRESO DE DATOS'!$G$20,0) -> 0 | H69: =IF('INGRESO DE DATOS'!$G$20>0,-(H62+H63+H64)*'INGRESO DE DATOS'!$G$20,0) -> 0 | I69: =IF('INGRESO DE DATOS'!$G$20>0,-(I62+I63+I64)*'INGRESO DE DATOS'!$G$20,0) -> 0 | J69: =IF('INGRESO DE DATOS'!$G$20>0,-(J62+J63+J64)*'INGRESO DE DATOS'!$G$20,0) -> 0
D70: Costo Administrativo Anual | E70: n/a | F70: 75 | G70: 75 | H70: 75 | I70: 75 | J70: 75
D71: IVA (12%) | E71: n/a | F71: =+(F68+F69+F70)*12% -> 365.2911 | G71: =+(G68+G69+G70)*12% -> 284.2827 | H71: 193.76535 | I71: 137.88975 | J71: =+(J68+J69+J70)*12% -> 99.34905
D72: (1ra Cuota) | E72: n/a | F72: =SUM(F68:F71) -> 3409.3836 | G72: =SUM(G68:G71) -> 2653.3052 | H72: =SUM(H68:H71) -> 1808.4766 | I72: =SUM(I68:I71) -> 1286.971 | J72: =SUM(J68:J71) -> 927.2578
D73: (2da a 4ta Cuota) | E73: n/a | F73: =F68+F69+F71-(F70*0.12) -> 3325.3836 | G73: =G68+G69+G71-(G70*0.12) -> 2569.3052 | H73: 1724.4766 | I73: 1202.971 | J73: =J68+J69+J71-(J70*0.12) -> 843.2578
D74: TOTAL | E74: n/a | F74: =F72+F73*3 -> 13385.5344 | G74: =G72+G73*3 -> 10361.2208 | H74: 6981.9064 | I74: 4895.884 | J74: 3457.0312
D77: Tarifas en US $ - Efectivas partir del 1ro de enero de 2023
D78: Este presupuesto solamente tiene carácter informativo y en ningún momento expresa compromiso legal para suministrarle cobertura de seguro. La emisión de una póliza de seguro Bupa está sujeta a todas las evaluaciones de riesgo por parte de Bupa y a la recepción de todos los pagos de prima requeridos.
D84: Bupa Guatemala, Compañía de Seguros, S.A.
D85: 5 Avenida 5-55 Zona 14, Europlaza World Business Center, Torre 3, Nivel 11, Guatemala
D86: PBX: 2300-8000 / www.bupasalud.com / servicioguatemala@bupalatinamerica.com

Sheet Blue 500 (hidden)
A10: Cotización de Seguro Médico Internacional - Bupa Blue 500 Guatemala
A12: Bupa Blue 500 Guatemala | H12: =+'INGRESO DE DATOS'!$D$14 -> Nombre
A13: Cobertura Máxima anual | C13: US$500,000
A14: Cobertura Geografica | C14: Cobertura mundial | H14: =+'INGRESO DE DATOS'!$D$25 -> Agente / Agencia
A15: Condiciones médicas cubiertas | C15: Todas las condiciones médicas
A16: Redes de proveedores | C16: Red de Proveedores Alpha | J16: =+'INGRESO DE DATOS'!$G$16 -> 2 | M16: =+'INGRESO DE DATOS'!$G$18 -> 32
A17: Opciones fuera de la Red | C17: 30%/70% | F17: FECHA DE COTIZACION :
A18: Requiere preautorización | C18: SI, 30% de penalización por omitir prenotificación | F18: =NOW() -> 2022-12-20T16:06:35.490 | J18: =+'INGRESO DE DATOS'!$J$16 -> 2 | M18: =+'INGRESO DE DATOS'!$J$18 -> 46
A20: Número máximo de días de hospitalización | C20: Ilimitado | I20: TRUE | K20: COMPLICACIONES DE MATERNIDAD
A21: Habitación y alimentación | C21: 100% dentro de Red Bupa
C22: 70% fuera de la Red Bupa | I22: TRUE | K22: TRASPLANTE DE ORGANOS
A23: Cuidados Intensivos | C23: 100% dentro de Red Bupa
C24: 70% fuera de la Red Bupa
A25: Cobertura de Maternidad | C25: $3,500 (Excepto planes 4,5, y 6) | F25: Deducibles | I25: PLAN 1 | J25: PLAN 2 | K25: PLAN 3 | L25: PLAN 4 | M25: PLAN 5
A26: Cobertura Provisional de Recién Nacido | C26: $10,000 por los primeros 90 días | F26: Dentro del pais de residencia | I26: 250 | J26: 500 | K26: 1000 | L26: 2000 | M26: 5000
A27: Cuidado del Recién Nacido saludable | C27: 2 visitas por año/ $50 vacunas | F27: Fuera del pais de residencia | I27: 500 | J27: 1000 | K27: 2000 | L27: 4000 | M27: 5000
A28: Cobertura de Complicaciones de Maternidad | C28: 50000
A29: Trasplante de Organos | C29: 250000
A30: Condiciones congénitas y hereditarias | C30: <18 años $75,000 de por vida; >=18 al 100% | F30: Tarifas Anuales
A31: Coberturas opcionales (Riders) | C31: Complicaciones de Maternidad por $500,000 | F31: Prima de Titular : | I31: =VLOOKUP($M$16,Tablas!$A$633:$H$695,4,TRUE) -> 1727 | J31: =VLOOKUP($M$16,Tablas!$A$633:$H$695,5,TRUE) -> 1505 | K31: =VLOOKUP($M$16,Tablas!$A$633:$H$695,6,TRUE) -> 1371 | L31: =VLOOKUP($M$16,Tablas!$A$633:$H$695,7,TRUE) -> 1131 | M31: =VLOOKUP($M$16,Tablas!$A$633:$H$695,8,TRUE) -> 846
C32: Trasplante de órganos por $ 500,000 de por vida | F32: Prima de Cónyuge | I32: =IF($J$16=1,0,(VLOOKUP($M$18,Tablas!$A$633:$H$695,4,TRUE))) -> 2564 | J32: =IF($J$16=1,0,(VLOOKUP($M$18,Tablas!$A$633:$H$695,5,TRUE))) -> 2226 | K32: =IF($J$16=1,0,(VLOOKUP($M$18,Tablas!$A$633:$H$695,6,TRUE))) -> 2030 | L32: =IF($J$16=1,0,(VLOOKUP($M$18,Tablas!$A$633:$H$695,7,TRUE))) -> 1754 | M32: =IF($J$16=1,0,(VLOOKUP($M$18,Tablas!$A$633:$H$695,8,TRUE))) -> 1282
A33: Acompañamiento de menores hospitalizados | C33: No incluye | F33: Primas Hijos : | I33: =IF($J$18=0,0,(VLOOKUP($J$18,Tablas!$A$696:$H$698,4,TRUE))) -> 1184 | J33: =IF($J$18=0,0,(VLOOKUP($J$18,Tablas!$A$696:$H$698,5,TRUE))) -> 1024 | K33: =IF($J$18=0,0,(VLOOKUP($J$18,Tablas!$A$696:$H$698,6,TRUE))) -> 935 | L33: =IF($J$18=0,0,(VLOOKUP($J$18,Tablas!$A$696:$H$698,7,TRUE))) -> 490 | M33: =IF($J$18=0,0,(VLOOKUP($J$18,Tablas!$A$696:$H$698,8,TRUE))) -> 436
A34: Ambulancia aérea | C34: 25000 | F34: Prima Rider Complic. Maternidad | I34: =+IF($I$20=FALSE,0,Tablas!D$699) -> 225 | J34: =+IF($I$20=FALSE,0,Tablas!E$699) -> 225 | K34: =+IF($I$20=FALSE,0,Tablas!F$699) -> 225 | L34: =+IF($I$20=FALSE,0,Tablas!G$699) -> 225 | M34: =+IF($I$20=FALSE,0,Tablas!H$699) -> 225
A35: Repatriación restos mortales | C35: 5000 | F35: Prima Rider Trasplante Organos | I35: =IF($I$22=FALSE,0,Tablas!D$700) -> 300 | J35: =IF($I$22=FALSE,0,Tablas!E$700) -> 300 | K35: =IF($I$22=FALSE,0,Tablas!F$700) -> 300 | L35: =IF($I$22=FALSE,0,Tablas!G$700) -> 300 | M35: =IF($I$22=FALSE,0,Tablas!H$700) -> 300
A36: Medicamentos por receta | C36: Si son médicamente prescritos tras una hospitalización o en relación con una cirugía ambulatoria entonces $7,000 por los próximos 6 meses. | F36: TOTAL PRIMA NETA : | I36: =SUM(I31:I35) -> 6000 | J36: 5280 | K36: 4861 | L36: 3900 | M36: 3089
F37: Costo Administrativo Anual : | I37: 75 | J37: 75 | K37: 75 | L37: 75 | M37: 75
F38: IVA (12%) | I38: =I36*0.12 -> 720 | J38: =J36*0.12 -> 633.6 | K38: 583.32 | L38: 468 | M38: 370.68
F39: GRAN TOTAL : | I39: =SUM(I36:I38) -> 6795 | J39: =SUM(J36:J38) -> 5988.6 | K39: 5519.32 | L39: 4443 | M39: 3534.68
F41: Tarifas Semestrales
C42: Medicamentos por receta ambulatoria $1,500 | F42: Prima de Titular : | I42: =VLOOKUP($M$16,Tablas!$A$705:$H$767,4,TRUE) -> 915.31 | J42: =VLOOKUP($M$16,Tablas!$A$705:$H$767,5,TRUE) -> 797.65 | K42: =VLOOKUP($M$16,Tablas!$A$705:$H$767,6,TRUE) -> 726.63 | L42: =VLOOKUP($M$16,Tablas!$A$705:$H$767,7,TRUE) -> 599.43 | M42: =VLOOKUP($M$16,Tablas!$A$705:$H$767,8,TRUE) -> 448.38
F43: Prima de Cónyuge | I43: =IF($J$16=1,0,(VLOOKUP($M$18,Tablas!$A$705:$H$767,4,TRUE))) -> 1358.92 | J43: =IF($J$16=1,0,(VLOOKUP($M$18,Tablas!$A$705:$H$767,5,TRUE))) -> 1179.78 | K43: =IF($J$16=1,0,(VLOOKUP($M$18,Tablas!$A$705:$H$767,6,TRUE))) -> 1075.9 | L43: =IF($J$16=1,0,(VLOOKUP($M$18,Tablas!$A$705:$H$767,7,TRUE))) -> 929.62 | M43: =IF($J$16=1,0,(VLOOKUP($M$18,Tablas!$A$705:$H$767,8,TRUE))) -> 679.46
A44: Atención médica en el hogar | C44: $200 por día, hasta 60 días por año por incidente | F44: Primas Hijos : | I44: =IF($J$18=0,0,(VLOOKUP($J$18,Tablas!$A$768:$H$770,4,TRUE))) -> 627.52 | J44: =IF($J$18=0,0,(VLOOKUP($J$18,Tablas!$A$768:$H$770,5,TRUE))) -> 542.72 | K44: =IF($J$18=0,0,(VLOOKUP($J$18,Tablas!$A$768:$H$770,6,TRUE))) -> 495.55 | L44: =IF($J$18=0,0,(VLOOKUP($J$18,Tablas!$A$768:$H$770,7,TRUE))) -> 259.7 | M44: =IF($J$18=0,0,(VLOOKUP($J$18,Tablas!$A$768:$H$770,8,TRUE))) -> 231.08
A45: Rehabilitación | C45: 100% de UCR hasta 40 sesiones por año | F45: Prima Rider Complic. Maternidad | I45: =+IF($I$20=FALSE,0,Tablas!D$771) -> 119.25 | J45: =+IF($I$20=FALSE,0,Tablas!E$771) -> 119.25 | K45: =+IF($I$20=FALSE,0,Tablas!F$771) -> 119.25 | L45: =+IF($I$20=FALSE,0,Tablas!G$771) -> 119.25 | M45: =+IF($I$20=FALSE,0,Tablas!H$771) -> 119.25
A46: Residencia y cuidados paliativos | C46: 100% de usual/acostumbrado y razonable | F46: Prima Rider Trasplante Organos | I46: =IF($I$22=FALSE,0,Tablas!D$772) -> 159 | J46: =IF($I$22=FALSE,0,Tablas!E$772) -> 159 | K46: =IF($I$22=FALSE,0,Tablas!F$772) -> 159 | L46: =IF($I$22=FALSE,0,Tablas!G$772) -> 159 | M46: =IF($I$22=FALSE,0,Tablas!H$772) -> 159
A47: Cobertura de actividades peligrosas | C47: 100% siempre que no sea práctica profesional | F47: TOTAL PRIMA NETA : | I47: =SUM(I42:I46) -> 3180 | J47: 2798.4 | K47: 2576.33 | L47: 2067 | M47: 1637.17
A48: Cobertura de brazos y piernas artificiales | C48: $30,000 por año y hasta $120,000 de por vida | F48: Costo Administrativo Anual : | I48: 75 | J48: 75 | K48: 75 | L48: 75 | M48: 75
A49: Cobertura extendida para dependientes en caso de muerte de asegurado principal | C49: n/a | F49: IVA (12%) | I49: =I47*0.12 -> 381.6 | J49: =J47*0.12 -> 335.808 | K49: 309.1596 | L49: 248.04 | M49: 196.4604
F50: GRAN TOTAL (1ra Cuota) : | I50: =SUM(I47:I49) -> 3636.6 | J50: =SUM(J47:J49) -> 3209.208 | K50: 2960.4896 | L50: 2390.04 | M50: 1908.6304
F51: GRAN TOTAL (2da Cuota) : | I51: =I47+I49 -> 3561.6 | J51: =J47+J49 -> 3134.208 | K51: 2885.4896 | L51: 2315.04 | M51: 1833.6304
F52: Tarifas en US $ - Válidas desde 01 Ene 2014

Sheet Blue 100 (hidden)
A10: Cotización de Seguro Médico Internacional - Bupa Blue 100 Guatemala
A12: Bupa Blue 100 Guatemala | H12: =+'INGRESO DE DATOS'!$D$14 -> Nombre
A13: Cobertura Máxima anual | C13: US$100,000
A14: Cobertura Geografica | C14: Cobertura mundial | H14: =+'INGRESO DE DATOS'!$D$25 -> Agente / Agencia
A15: Condiciones médicas cubiertas | C15: Todas las condiciones médicas
A16: Redes de proveedores | C16: Red de Proveedores Alpha | J16: =+'INGRESO DE DATOS'!$G$16 -> 2 | M16: =+'INGRESO DE DATOS'!$G$18 -> 32
A17: Opciones fuera de la Red | C17: 30%/70% | F17: FECHA DE COTIZACION :
A18: Requiere preautorización | C18: Sí, 30% de penalización por omitir prenotificación | F18: =NOW() -> 2022-12-20T16:06:35.490 | J18: =+'INGRESO DE DATOS'!$J$16 -> 2 | M18: =+'INGRESO DE DATOS'!$J$18 -> 46
A20: Número máximo de días de hospitalización | C20: Ilimitado | I20: TRUE | K20: COMPLICACIONES DE MATERNIDAD
A21: Habitación y alimentación | C21: 100% dentro de Red Bupa
C22: 70% fuera de la Red Bupa | I22: TRUE | K22: TRASPLANTE DE ORGANOS
A23: Cuidados Intensivos | C23: 100% dentro de Red Bupa
C24: 70% fuera de la Red Bupa
A25: Cobertura de Maternidad | C25: $3,500 (Excepto planes 4,5, y 6) | F25: Deducibles | I25: PLAN 1 | J25: PLAN 2 | K25: PLAN 3 | L25: PLAN 4 | M25: PLAN 5
A26: Cobertura Provisional de Recién Nacido | C26: $7,500 por los primeros 90 días | F26: Dentro del pais de residencia | I26: 250 | J26: 500 | K26: 1000 | L26: 2000 | M26: 5000
A27: Cuidado del Recién Nacido saludable | C27: 2 visitas por año. $50 vacunas | F27: Fuera del pais de residencia | I27: 500 | J27: 1000 | K27: 2000 | L27: 4000 | M27: 5000
A28: Cobertura de Complicaciones de Maternidad | C28: 25000
A29: Trasplante de Organos | C29: 100000
A30: Condiciones congénitas y hereditarias | C30: <18 años $50,000 de por vida; >=18 al 100% | F30: Tarifas Anuales
A31: Coberturas opcionales (Riders) | C31: Complicaciones de Maternidad por $500,000 | F31: Prima de Titular : | I31: =VLOOKUP($M$16,Tablas!$A$778:$H$840,4,TRUE) -> 1392 | J31: =VLOOKUP($M$16,Tablas!$A$778:$H$840,5,TRUE) -> 1363 | K31: =VLOOKUP($M$16,Tablas!$A$778:$H$840,6,TRUE) -> 1285 | L31: =VLOOKUP($M$16,Tablas!$A$778:$H$840,7,TRUE) -> 1171 | M31: =VLOOKUP($M$16,Tablas!$A$778:$H$840,8,TRUE) -> 965
C32: Trasplante de órganos por $ 500,000 de por vida | F32: Prima de Cónyuge | I32: =IF($J$16=1,0,(VLOOKUP($M$18,Tablas!$A$778:$H$840,4,TRUE))) -> 2059 | J32: =IF($J$16=1,0,(VLOOKUP($M$18,Tablas!$A$778:$H$840,5,TRUE))) -> 2018 | K32: =IF($J$16=1,0,(VLOOKUP($M$18,Tablas!$A$633:$H$656,6,TRUE))) -> 1719 | L32: =IF($J$16=1,0,(VLOOKUP($M$18,Tablas!$A$778:$H$840,7,TRUE))) -> 1735 | M32: =IF($J$16=1,0,(VLOOKUP($M$18,Tablas!$A$778:$H$840,8,TRUE))) -> 1494
A33: Acompañamiento de menores hospitalizados | C33: n/a | F33: Primas Hijos : | I33: =IF($J$18=0,0,(VLOOKUP($J$18,Tablas!$A$841:$H$843,4,TRUE))) -> 949 | J33: =IF($J$18=0,0,(VLOOKUP($J$18,Tablas!$A$841:$H$843,5,TRUE))) -> 930 | K33: =IF($J$18=0,0,(VLOOKUP($J$18,Tablas!$A$841:$H$843,6,TRUE))) -> 877 | L33: =IF($J$18=0,0,(VLOOKUP($J$18,Tablas!$A$841:$H$843,7,TRUE))) -> 800 | M33: =IF($J$18=0,0,(VLOOKUP($J$18,Tablas!$A$841:$H$843,8,TRUE))) -> 416
A34: Ambulancia aérea | C34: $10,000 por año y ticket aéreo de retorno | F34: Prima Rider Complic. Maternidad | I34: =+IF($I$20=FALSE,0,Tablas!D$844) -> 225 | J34: =+IF($I$20=FALSE,0,Tablas!E$844) -> 225 | K34: =+IF($I$20=FALSE,0,Tablas!F$844) -> 225 | L34: =+IF($I$20=FALSE,0,Tablas!G$844) -> 225 | M34: =+IF($I$20=FALSE,0,Tablas!H$844) -> 225
A35: Repatriación restos mortales | C35: 5000 | F35: Prima Rider Trasplante Organos | I35: =IF($I$22=FALSE,0,Tablas!D$845) -> 300 | J35: =IF($I$22=FALSE,0,Tablas!E$845) -> 300 | K35: =IF($I$22=FALSE,0,Tablas!F$845) -> 300 | L35: =IF($I$22=FALSE,0,Tablas!G$845) -> 300 | M35: =IF($I$22=FALSE,0,Tablas!H$845) -> 300
A36: Medicamentos por receta | C36: Si son médicamente prescritos tras una hospitalización o en relación con una cirugía ambulatoria entonces $6,000 por los próximos 6 meses. | F36: TOTAL PRIMA NETA : | I36: =SUM(I31:I35) -> 4925 | J36: 4836 | K36: 4406 | L36: 4231 | M36: 3400
F37: Costo Administrativo Anual : | I37: 75 | J37: 75 | K37: 75 | L37: 75 | M37: 75
F38: IVA (12%) | I38: =I36*0.12 -> 591 | J38: =J36*0.12 -> 580.32 | K38: 528.72 | L38: 507.72 | M38: 408
F39: GRAN TOTAL : | I39: =SUM(I36:I38) -> 5591 | J39: =SUM(J36:J38) -> 5491.32 | K39: 5009.72 | L39: 4813.72 | M39: 3883
F41: Tarifas Semestrales
C42: Tratamiento Ambulatorio a US$1,500 | F42: Prima de Titular : | I42: =VLOOKUP($M$16,Tablas!$A$850:$H$912,4,TRUE) -> 737.76 | J42: =VLOOKUP($M$16,Tablas!$A$850:$H$912,5,TRUE) -> 722.39 | K42: =VLOOKUP($M$16,Tablas!$A$850:$H$912,6,TRUE) -> 681.05 | L42: =VLOOKUP($M$16,Tablas!$A$850:$H$912,7,TRUE) -> 620.63 | M42: =VLOOKUP($M$16,Tablas!$A$850:$H$912,8,TRUE) -> 511.45
F43: Prima de Cónyuge | I43: =IF($J$16=1,0,(VLOOKUP($M$18,Tablas!$A$850:$H$912,4,TRUE))) -> 1091.27 | J43: =IF($J$16=1,0,(VLOOKUP($M$18,Tablas!$A$850:$H$912,5,TRUE))) -> 1069.54 | K43: =IF($J$16=1,0,(VLOOKUP($M$18,Tablas!$A$850:$H$912,6,TRUE))) -> 1007.53 | L43: =IF($J$16=1,0,(VLOOKUP($M$18,Tablas!$A$850:$H$912,7,TRUE))) -> 919.55 | M43: =IF($J$16=1,0,(VLOOKUP($M$18,Tablas!$A$850:$H$912,8,TRUE))) -> 791.82
A44: Atención médica en el hogar | C44: $200 por día, hasta 60 días por año por incidente | F44: Primas Hijos : | I44: =IF($J$18=0,0,(VLOOKUP($J$18,Tablas!$A$913:$H$915,4,TRUE))) -> 502.97 | J44: =IF($J$18=0,0,(VLOOKUP($J$18,Tablas!$A$913:$H$915,5,TRUE))) -> 492.9 | K44: =IF($J$18=0,0,(VLOOKUP($J$18,Tablas!$A$913:$H$915,6,TRUE))) -> 464.81 | L44: =IF($J$18=0,0,(VLOOKUP($J$18,Tablas!$A$913:$H$915,7,TRUE))) -> 424 | M44: =IF($J$18=0,0,(VLOOKUP($J$18,Tablas!$A$913:$H$915,8,TRUE))) -> 220.48
A45: Rehabilitación | C45: 100% de UCR hasta 30 sesiones por año | F45: Prima Rider Complic. Maternidad | I45: =+IF($I$20=FALSE,0,Tablas!D$916) -> 119.25 | J45: =+IF($I$20=FALSE,0,Tablas!E$916) -> 119.25 | K45: =+IF($I$20=FALSE,0,Tablas!F$916) -> 119.25 | L45: =+IF($I$20=FALSE,0,Tablas!G$916) -> 119.25 | M45: =+IF($I$20=FALSE,0,Tablas!H$916) -> 119.25
A46: Residencia y cuidados paliativos | C46: 100% de usual/acostumbrado y razonable | F46: Prima Rider Trasplante Organos | I46: =IF($I$22=FALSE,0,Tablas!D$917) -> 159 | J46: =IF($I$22=FALSE,0,Tablas!E$917) -> 159 | K46: =IF($I$22=FALSE,0,Tablas!F$917) -> 159 | L46: =IF($I$22=FALSE,0,Tablas!G$917) -> 159 | M46: =IF($I$22=FALSE,0,Tablas!H$917) -> 159
A47: Cobertura de actividades peligrosas | C47: 100% siempre que no sea práctica profesional | F47: TOTAL PRIMA NETA : | I47: =SUM(I42:I46) -> 2610.25 | J47: 2563.08 | K47: 2431.64 | L47: 2242.43 | M47: 1802
A48: Cobertura de brazos y piernas artificiales | C48: $30,000 por año y hasta $120,000 de por vida | F48: Costo Administrativo Anual : | I48: 75 | J48: 75 | K48: 75 | L48: 75 | M48: 75
A49: Cobertura extendida para dependientes en caso de muerte de asegurado principal | C49: n/a | F49: IVA (12%) | I49: =I47*0.12 -> 313.23 | J49: =J47*0.12 -> 307.5696 | K49: 291.7968 | L49: 269.0916 | M49: 216.24
F50: GRAN TOTAL (1ra Cuota) : | I50: =SUM(I47:I49) -> 2998.48 | J50: =SUM(J47:J49) -> 2945.6496 | K50: 2798.4368 | L50: 2586.5216 | M50: 2093.24
F51: GRAN TOTAL (2da Cuota) : | I51: =I47+I49 -> 2923.48 | J51: =J47+J49 -> 2870.6496 | K51: 2723.4368 | L51: 2511.5216 | M51: 2018.24
F52: Tarifas en US $ - Válidas desde 01 Ene 2014

Sheet Essential Care
D8: Cotización de Seguro Médico Internacional
D9: BUPA Essential Care
A10: Bupa Essential Care
D11: Nombre del Asegurado: | E11: =+'INGRESO DE DATOS'!$D$14 -> Nombre
D13: Intermediario: | E13: =+'INGRESO DE DATOS'!$D$25 -> Agente / Agencia
D15: Fecha: | E15: =+TODAY() -> 2022-12-20 | G15: =IF('INGRESO DE DATOS'!G20>0,"Descuento","") ->  | H15: =IF('INGRESO DE DATOS'!G20>0,'INGRESO DE DATOS'!G20,"") -> 
F17: Numero de Adultos: | G17: =+'INGRESO DE DATOS'!$G$16 -> 2 | I17: Edad de Titular: | J17: =+'INGRESO DE DATOS'!$G$18 -> 32
F19: Numero de Hijos: | G19: =+'INGRESO DE DATOS'!$J$16 -> 2 | I19: Edad de Conyuge: | J19: =+'INGRESO DE DATOS'!$J$18 -> 46
H21: Complicaciones de Maternidad (planes 1, 2, y 3)
F22: TRUE
F23: TRUE | H23: Trasplante de Órganos
F24: FALSE
H25: Eliminación de Deducible
D26: Deducibles
E27: PLAN 1 | F27: PLAN 2 | G27: PLAN 3 | H27: PLAN 4 | I27: PLAN 5 | J27: PLAN 6
D28: Dentro del pais de residencia | E28: 250 | F28: 250 | G28: 1000 | H28: 5000 | I28: 10000 | J28: 20000
D29: Fuera del pais de residencia | E29: 1000 | F29: 5000 | G29: 10000 | H29: 5000 | I29: 10000 | J29: 20000
D31: Tarifas Anuales
D32: Prima Titular | E32: =VLOOKUP($J$17,Tablas!$A$274:$H$336,3,TRUE) -> 1961 | F32: =VLOOKUP($J$17,Tablas!$A$274:$H$336,4,TRUE) -> 1886 | G32: =VLOOKUP($J$17,Tablas!$A$274:$H$336,5,TRUE) -> 1748 | H32: =VLOOKUP($J$17,Tablas!$A$274:$H$336,6,TRUE) -> 1239 | I32: =VLOOKUP($J$17,Tablas!$A$274:$H$336,7,TRUE) -> 907 | J32: =VLOOKUP($J$17,Tablas!$A$274:$H$336,8,TRUE) -> 644
D33: Prima Cónyuge | E33: =IF($G$17=1,0,(VLOOKUP($J$19,Tablas!$A$274:$H$336,3,TRUE))) -> 2980 | F33: =IF($G$17=1,0,(VLOOKUP($J$19,Tablas!$A$274:$H$336,4,TRUE))) -> 2866 | G33: =IF($G$17=1,0,(VLOOKUP($J$19,Tablas!$A$274:$H$336,5,TRUE))) -> 2657 | H33: =IF($G$17=1,0,(VLOOKUP($J$19,Tablas!$A$274:$H$336,6,TRUE))) -> 1881 | I33: =IF($G$17=1,0,(VLOOKUP($J$19,Tablas!$A$274:$H$336,7,TRUE))) -> 1324 | J33: =IF($G$17=1,0,(VLOOKUP($J$19,Tablas!$A$274:$H$336,8,TRUE))) -> 925
D34: Primas Hijos | E34: =IF($G$19=0,0,(VLOOKUP($G$19,Tablas!$A$337:$H$339,3,TRUE))) -> 996 | F34: =IF($G$19=0,0,(VLOOKUP($G$19,Tablas!$A$337:$H$339,4,TRUE))) -> 958 | G34: =IF($G$19=0,0,(VLOOKUP($G$19,Tablas!$A$337:$H$339,5,TRUE))) -> 888 | H34: =IF($G$19=0,0,(VLOOKUP($G$19,Tablas!$A$337:$H$339,6,TRUE))) -> 629 | I34: =IF($G$19=0,0,(VLOOKUP($G$19,Tablas!$A$337:$H$339,7,TRUE))) -> 524 | J34: =IF($G$19=0,0,(VLOOKUP($G$19,Tablas!$A$337:$H$339,8,TRUE))) -> 414
D35: Anexo: Complicaciones de Maternidad | E35: =+IF($F$22=FALSE,0,Tablas!C$340) -> 225 | F35: =+IF($F$22=FALSE,0,Tablas!D$340) -> 225 | G35: =+IF($F$22=FALSE,0,Tablas!E$340) -> 225 | H35: =+IF($F$22=FALSE,0,Tablas!F$340) -> 0 | I35: =+IF($F$22=FALSE,0,Tablas!G$340) -> 0 | J35: =+IF($F$22=FALSE,0,Tablas!H$340) -> 0
D36: Anexo: Trasplante Organos | E36: =IF($F$23=FALSE,0,Tablas!C$341) -> 300 | F36: =IF($F$23=FALSE,0,Tablas!D$341) -> 300 | G36: =IF($F$23=FALSE,0,Tablas!E$341) -> 300 | H36: =IF($F$23=FALSE,0,Tablas!F$341) -> 300 | I36: =IF($F$23=FALSE,0,Tablas!G$341) -> 300 | J36: =IF($F$23=FALSE,0,Tablas!H$341) -> 300
D37: Anexo: Eliminacion de Deducible | E37: =IF($F$24=FALSE,0,Tablas!C$342) -> 0 | F37: =IF($F$24=FALSE,0,Tablas!D$342) -> 0 | G37: =IF($F$24=FALSE,0,Tablas!E$342) -> 0 | H37: =IF($F$24=FALSE,0,Tablas!F$342) -> 0 | I37: =IF($F$24=FALSE,0,Tablas!G$342) -> 0 | J37: =IF($F$24=FALSE,0,Tablas!H$342) -> 0
D38: PRIMA NETA | E38: =SUM(E32:E37) -> 6462 | F38: 6235 | G38: 5818 | H38: 4049 | I38: 3055 | J38: 2283
D39: =IF('INGRESO DE DATOS'!G20>0,"Descuento","") ->  | E39: =IF('INGRESO DE DATOS'!$G$20>0,-(E32+E33+E34)*'INGRESO DE DATOS'!$G$20,0) -> 0 | F39: =IF('INGRESO DE DATOS'!$G$20>0,-(F32+F33+F34)*'INGRESO DE DATOS'!$G$20,0) -> 0 | G39: =IF('INGRESO DE DATOS'!$G$20>0,-(G32+G33+G34)*'INGRESO DE DATOS'!$G$20,0) -> 0 | H39: =IF('INGRESO DE DATOS'!$G$20>0,-(H32+H33+H34)*'INGRESO DE DATOS'!$G$20,0) -> 0 | I39: =IF('INGRESO DE DATOS'!$G$20>0,-(I32+I33+I34)*'INGRESO DE DATOS'!$G$20,0) -> 0 | J39: =IF('INGRESO DE DATOS'!$G$20>0,-(J32+J33+J34)*'INGRESO DE DATOS'!$G$20,0) -> 0
D40: Costo Administrativo Anual | E40: 75 | F40: 75 | G40: 75 | H40: 75 | I40: 75 | J40: 75
D41: IVA (12%) | E41: =+(E38+E39+E40)*12% -> 784.44 | F41: =+(F38+F39+F40)*12% -> 757.2 | G41: =+(G38+G39+G40)*12% -> 707.16 | H41: 494.88 | I41: 375.6 | J41: =+(J38+J39+J40)*12% -> 282.96
D42: TOTAL | E42: =SUM(E38:E41) -> 7321.44 | F42: 7067.2 | G42: 6600.16 | H42: 4618.88 | I42: 3505.6 | J42: 2640.96
D44: Tarifas Semestrales
D45: Prima Titular | E45: =VLOOKUP($J$17,Tablas!$A$346:$H$408,3,TRUE) -> 1039.33 | F45: =VLOOKUP($J$17,Tablas!$A$346:$H$408,4,TRUE) -> 999.58 | G45: =VLOOKUP($J$17,Tablas!$A$346:$H$408,5,TRUE) -> 926.44 | H45: =VLOOKUP($J$17,Tablas!$A$346:$H$408,6,TRUE) -> 656.67 | I45: =VLOOKUP($J$17,Tablas!$A$346:$H$408,7,TRUE) -> 480.71 | J45: =VLOOKUP($J$17,Tablas!$A$346:$H$408,8,TRUE) -> 341.32
D46: Prima Cónyuge | E46: =IF($G$17=1,0,(VLOOKUP($J$19,Tablas!$A$346:$H$408,3,TRUE))) -> 1579.4 | F46: =IF($G$17=1,0,(VLOOKUP($J$19,Tablas!$A$346:$H$408,4,TRUE))) -> 1518.98 | G46: =IF($G$17=1,0,(VLOOKUP($J$19,Tablas!$A$346:$H$408,5,TRUE))) -> 1408.21 | H46: =IF($G$17=1,0,(VLOOKUP($J$19,Tablas!$A$346:$H$408,6,TRUE))) -> 996.93 | I46: =IF($G$17=1,0,(VLOOKUP($J$19,Tablas!$A$346:$H$408,7,TRUE))) -> 701.72 | J46: =IF($G$17=1,0,(VLOOKUP($J$19,Tablas!$A$346:$H$408,8,TRUE))) -> 490.25
D47: Primas Hijos | E47: =IF($G$19=0,0,(VLOOKUP($G$19,Tablas!$A$409:$H$411,3,TRUE))) -> 527.88 | F47: =IF($G$19=0,0,(VLOOKUP($G$19,Tablas!$A$409:$H$411,4,TRUE))) -> 507.74 | G47: =IF($G$19=0,0,(VLOOKUP($G$19,Tablas!$A$409:$H$411,5,TRUE))) -> 470.64 | H47: =IF($G$19=0,0,(VLOOKUP($G$19,Tablas!$A$409:$H$411,6,TRUE))) -> 333.37 | I47: =IF($G$19=0,0,(VLOOKUP($G$19,Tablas!$A$409:$H$411,7,TRUE))) -> 277.72 | J47: =IF($G$19=0,0,(VLOOKUP($G$19,Tablas!$A$409:$H$411,8,TRUE))) -> 219.42
D48: Anexo: Complicaciones de Maternidad | E48: =+IF($F$22=FALSE,0,Tablas!C$412) -> 119.25 | F48: =+IF($F$22=FALSE,0,Tablas!D$412) -> 119.25 | G48: =+IF($F$22=FALSE,0,Tablas!E$412) -> 119.25 | H48: =+IF($F$22=FALSE,0,Tablas!F$412) -> 0 | I48: =+IF($F$22=FALSE,0,Tablas!G$412) -> 0 | J48: =+IF($F$22=FALSE,0,Tablas!H$412) -> 0
D49: Anexo: Trasplante Organos | E49: =IF($F$23=FALSE,0,Tablas!C$413) -> 159 | F49: =IF($F$23=FALSE,0,Tablas!D$413) -> 159 | G49: =IF($F$23=FALSE,0,Tablas!E$413) -> 159 | H49: =IF($F$23=FALSE,0,Tablas!F$413) -> 159 | I49: =IF($F$23=FALSE,0,Tablas!G$413) -> 159 | J49: =IF($F$23=FALSE,0,Tablas!H$413) -> 159
D50: Anexo: Eliminacion de Deducible | E50: =IF($F$24=FALSE,0,Tablas!C$414) -> 0 | F50: =IF($F$24=FALSE,0,Tablas!D$414) -> 0 | G50: =IF($F$24=FALSE,0,Tablas!E$414) -> 0 | H50: =IF($F$24=FALSE,0,Tablas!F$414) -> 0 | I50: =IF($F$24=FALSE,0,Tablas!G$414) -> 0 | J50: =IF($F$24=FALSE,0,Tablas!H$414) -> 0
D51: PRIMA NETA | E51: =SUM(E45:E50) -> 3424.86 | F51: =SUM(F45:F50) -> 3304.55 | G51: =SUM(G45:G50) -> 3083.54 | H51: 2145.97 | I51: 1619.15 | J51: 1209.99
D52: =IF('INGRESO DE DATOS'!G20>0,"Descuento","") ->  | E52: =IF('INGRESO DE DATOS'!$G$20>0,-(E45+E46+E47)*'INGRESO DE DATOS'!$G$20,0) -> 0 | F52: =IF('INGRESO DE DATOS'!$G$20>0,-(F45+F46+F47)*'INGRESO DE DATOS'!$G$20,0) -> 0 | G52: =IF('INGRESO DE DATOS'!$G$20>0,-(G45+G46+G47)*'INGRESO DE DATOS'!$G$20,0) -> 0 | H52: =IF('INGRESO DE DATOS'!$G$20>0,-(H45+H46+H47)*'INGRESO DE DATOS'!$G$20,0) -> 0 | I52: =IF('INGRESO DE DATOS'!$G$20>0,-(I45+I46+I47)*'INGRESO DE DATOS'!$G$20,0) -> 0 | J52: =IF('INGRESO DE DATOS'!$G$20>0,-(J45+J46+J47)*'INGRESO DE DATOS'!$G$20,0) -> 0
D53: Costo Administrativo Anual | E53: 75 | F53: 75 | G53: 75 | H53: 75 | I53: 75 | J53: 75
D54: IVA (12%) | E54: =+(E51+E52+E53)*12% -> 419.9832 | F54: =+(F51+F52+F53)*12% -> 405.546 | G54: =+(G51+G52+G53)*12% -> 379.0248 | H54: =+(H51+H52+H53)*12% -> 266.5164 | I54: =+(I51+I52+I53)*12% -> 203.298 | J54: =+(J51+J52+J53)*12% -> 154.1988
D55: (1ra Cuota) | E55: =SUM(E51:E54) -> 3919.8432 | F55: 3785.096 | G55: 3537.5648 | H55: 2487.4864 | I55: 1897.448 | J55: 1439.1888
D56: (2da Cuota) | E56: =E51+E52+E54-(E53*0.12) -> 3835.8432 | F56: =F51+F52+F54-(F53*0.12) -> 3701.096 | G56: =G51+G52+G54-(G53*0.12) -> 3453.5648 | H56: 2403.4864 | I56: 1813.448 | J56: 1355.1888
D57: TOTAL | E57: =SUM(E55:E56) -> 7755.6864 | F57: =SUM(F55:F56) -> 7486.192 | G57: 6991.1296 | H57: 4890.9728 | I57: 3710.896 | J57: 2794.3776
D60: Tarifas Trimestrales
D61: Prima Titular | E61: =VLOOKUP($J$17,Tablas!$A$991:$H$1053,3,TRUE) -> 539.275 | F61: =VLOOKUP($J$17,Tablas!$A$991:$H$1053,4,TRUE) -> 518.65 | G61: =VLOOKUP($J$17,Tablas!$A$991:$H$1053,5,TRUE) -> 480.7 | H61: =VLOOKUP($J$17,Tablas!$A$991:$H$1053,6,TRUE) -> 340.725 | I61: =VLOOKUP($J$17,Tablas!$A$991:$H$1053,7,TRUE) -> 249.425 | J61: =VLOOKUP($J$17,Tablas!$A$991:$H$1053,8,TRUE) -> 177.1
D62: Prima Cónyuge | E62: =IF($G$17=1,0,(VLOOKUP($J$19,Tablas!$A$991:$H$1053,3,TRUE))) -> 819.5 | F62: =IF($G$17=1,0,(VLOOKUP($J$19,Tablas!$A$991:$H$1053,4,TRUE))) -> 788.15 | G62: =IF($G$17=1,0,(VLOOKUP($J$19,Tablas!$A$991:$H$1053,5,TRUE))) -> 730.675 | H62: =IF($G$17=1,0,(VLOOKUP($J$19,Tablas!$A$991:$H$1053,6,TRUE))) -> 517.275 | I62: =IF($G$17=1,0,(VLOOKUP($J$19,Tablas!$A$991:$H$1053,7,TRUE))) -> 364.1 | J62: =IF($G$17=1,0,(VLOOKUP($J$19,Tablas!$A$991:$H$1053,8,TRUE))) -> 254.375
D63: Primas Hijos | E63: =IF($G$19=0,0,(VLOOKUP($G$19,Tablas!$A$1054:$H$1056,3,TRUE))) -> 273.9 | F63: =IF($G$19=0,0,(VLOOKUP($G$19,Tablas!$A$1054:$H$1056,4,TRUE))) -> 263.45 | G63: =IF($G$19=0,0,(VLOOKUP($G$19,Tablas!$A$1054:$H$1056,5,TRUE))) -> 244.2 | H63: =IF($G$19=0,0,(VLOOKUP($G$19,Tablas!$A$1054:$H$1056,6,TRUE))) -> 172.975 | I63: =IF($G$19=0,0,(VLOOKUP($G$19,Tablas!$A$1054:$H$1056,7,TRUE))) -> 144.1 | J63: =IF($G$19=0,0,(VLOOKUP($G$19,Tablas!$A$1054:$H$1056,8,TRUE))) -> 113.85
D64: Anexo: Complicaciones de Maternidad | E64: =+IF($F$22=FALSE,0,Tablas!C$1057) -> 61.875 | F64: =+IF($F$22=FALSE,0,Tablas!D$1057) -> 61.875 | G64: =+IF($F$22=FALSE,0,Tablas!E$1057) -> 61.875 | H64: =+IF($F$22=FALSE,0,Tablas!F$1057) -> 0 | I64: =+IF($F$22=FALSE,0,Tablas!G$1057) -> 0 | J64: =+IF($F$22=FALSE,0,Tablas!H$1057) -> 0
D65: Anexo: Trasplante Organos | E65: =IF($F$23=FALSE,0,Tablas!C$1058) -> 82.5 | F65: =IF($F$23=FALSE,0,Tablas!D$1058) -> 82.5 | G65: =IF($F$23=FALSE,0,Tablas!E$1058) -> 82.5 | H65: =IF($F$23=FALSE,0,Tablas!F$1058) -> 82.5 | I65: =IF($F$23=FALSE,0,Tablas!G$1058) -> 82.5 | J65: =IF($F$23=FALSE,0,Tablas!H$1058) -> 82.5
D66: Anexo: Eliminacion de Deducible | E66: =IF($F$24=FALSE,0,Tablas!C$1059) -> 0 | F66: =IF($F$24=FALSE,0,Tablas!D$1059) -> 0 | G66: =IF($F$24=FALSE,0,Tablas!E$1059) -> 0 | H66: =IF($F$24=FALSE,0,Tablas!F$1059) -> 0 | I66: =IF($F$24=FALSE,0,Tablas!G$1059) -> 0 | J66: =IF($F$24=FALSE,0,Tablas!H$1059) -> 0
D67: PRIMA NETA | E67: =SUM(E61:E66) -> 1777.05 | F67: =SUM(F61:F66) -> 1714.625 | G67: =SUM(G61:G66) -> 1599.95 | H67: 1113.475 | I67: 840.125 | J67: 627.825
D68: =IF('INGRESO DE DATOS'!G36>0,"Descuento","") ->  | E68: =IF('INGRESO DE DATOS'!$G$20>0,-(E61+E62+E63)*'INGRESO DE DATOS'!$G$20,0) -> 0 | F68: =IF('INGRESO DE DATOS'!$G$20>0,-(F61+F62+F63)*'INGRESO DE DATOS'!$G$20,0) -> 0 | G68: =IF('INGRESO DE DATOS'!$G$20>0,-(G61+G62+G63)*'INGRESO DE DATOS'!$G$20,0) -> 0 | H68: =IF('INGRESO DE DATOS'!$G$20>0,-(H61+H62+H63)*'INGRESO DE DATOS'!$G$20,0) -> 0 | I68: =IF('INGRESO DE DATOS'!$G$20>0,-(I61+I62+I63)*'INGRESO DE DATOS'!$G$20,0) -> 0 | J68: =IF('INGRESO DE DATOS'!$G$20>0,-(J61+J62+J63)*'INGRESO DE DATOS'!$G$20,0) -> 0
D69: Costo Administrativo Anual | E69: 75 | F69: 75 | G69: 75 | H69: 75 | I69: 75 | J69: 75
D70: IVA (12%) | E70: =+(E67+E68+E69)*12% -> 222.246 | F70: =+(F67+F68+F69)*12% -> 214.755 | G70: =+(G67+G68+G69)*12% -> 200.994 | H70: 142.617 | I70: 109.815 | J70: =+(J67+J68+J69)*12% -> 84.339
D71: (1ra Cuota) | E71: =SUM(E67:E70) -> 2074.296 | F71: 2004.38 | G71: 1875.944 | H71: 1331.092 | I71: 1024.94 | J71: 787.164
D72: (2da a 4ta Cuota) | E72: =E67+E68+E70-(E69*0.12) -> 1990.296 | F72: =F67+F68+F70-(F69*0.12) -> 1920.38 | G72: =G67+G68+G70-(G69*0.12) -> 1791.944 | H72: 1247.092 | I72: 940.94 | J72: 703.164
D73: TOTAL | E73: =E71+E72*3 -> 8045.184 | F73: =F71+F72*3 -> 7765.52 | G73: 7251.776 | H73: 5072.368 | I73: 3847.76 | J73: 2896.656
D76: Tarifas en US $ - Efectivas partir del 1ro de enero de 2023
D77: Este presupuesto solamente tiene carácter informativo y en ningún momento expresa compromiso legal para suministrarle cobertura de seguro. La emisión de una póliza de seguro Bupa está sujeta a todas las evaluaciones de riesgo por parte de Bupa y a la recepción de todos los pagos de prima requeridos.
D81: Bupa Guatemala, Compañía de Seguros, S.A.
D82: 5 Avenida 5-55 Zona 14, Europlaza World Business Center, Torre 3, Nivel 11, Guatemala
D83: PBX: 2300-8000 / www.bupasalud.com / servicioguatemala@bupalatinamerica.com

Sheet Resumen tarifas anuales
C2: Cotización de Seguro Médico Internacional - BUPA Guatemala
C7: Nombre del Asegurado: | D7: =+'INGRESO DE DATOS'!$D$14 -> Nombre
C9: Intermediario: | D9: =+'INGRESO DE DATOS'!$D$25 -> Agente / Agencia
C11: Fecha: | D11: =+TODAY() -> 2022-12-20 | F11: =IF('INGRESO DE DATOS'!G20>0,"Descuento","") ->  | G11: =IF('INGRESO DE DATOS'!G20>0,'INGRESO DE DATOS'!G20,"") -> 
E13: Numero de Adultos: | F13: =+'INGRESO DE DATOS'!$G$16 -> 2 | H13: Edad de Titular: | I13: =+'INGRESO DE DATOS'!$G$18 -> 32
E15: Numero de Hijos: | F15: =+'INGRESO DE DATOS'!$J$16 -> 2 | H15: Edad de Conyuge: | I15: =+'INGRESO DE DATOS'!$J$18 -> 46
D17: DEDUCIBLES
D18: PLAN 1 | E18: PLAN 2 | F18: PLAN 3 | G18: PLAN 4 | H18: PLAN 5 | I18: PLAN 6
C19: Dentro del pais de residencia | D19: n/a | E19: 1000 | F19: 2000 | G19: 5000 | H19: 10000 | I19: 20000
C20: Fuera del pais de residencia | D20: n/a | E20: 2000 | F20: 3000 | G20: 5000 | H20: 10000 | I20: 20000
C23: TARIFAS ANUALES
C24: Classic Care | E24: =+Classic!F43 -> 12176.304 | F24: =+Classic!G43 -> 9426.928 | G24: =+Classic!H43 -> 6354.824 | H24: =+Classic!I43 -> 4458.44 | I24: =+Classic!J43 -> 3150.392
C27: TARIFAS SEMIANUALES
C28: Classic Care | D28: 1ra. Cuota | E28: =+Classic!$F$56 -> 6492.92112 | F28: =+Classic!$G$56 -> 5035.75184 | G28: =+Classic!$H$56 -> 3407.53672 | H28: =+Classic!$I$56 -> 2402.4532 | I28: =+Classic!$J$56 -> 1709.18776
D29: 2da. Cuota | E29: =+Classic!$F$57 -> 6408.92112 | F29: =+Classic!$G$57 -> 4951.75184 | G29: =+Classic!$H$57 -> 3323.53672 | H29: =+Classic!$I$57 -> 2318.4532 | I29: =+Classic!$J$57 -> 1625.18776
D30: TOTAL | E30: =Classic!F58 -> 12901.84224 | F30: =Classic!G58 -> 9987.50368 | G30: =Classic!H58 -> 6731.07344 | H30: =Classic!I58 -> 4720.9064 | I30: =Classic!J58 -> 3334.37552
C32: TARIFAS TRIMESTRALES
C33: Classic Care | D33: 1ra. Cuota | E33: =+Classic!$F$72 -> 3409.3836 | F33: =+Classic!$G$72 -> 2653.3052 | G33: =+Classic!$H$72 -> 1808.4766 | H33: =+Classic!$I$72 -> 1286.971 | I33: =+Classic!$J$72 -> 927.2578
D34: 2da. a 4ta. Cuota | E34: =+Classic!$F$73 -> 3325.3836 | F34: =+Classic!$G$73 -> 2569.3052 | G34: =+Classic!$H$73 -> 1724.4766 | H34: =+Classic!$I$73 -> 1202.971 | I34: =+Classic!$J$73 -> 843.2578
D35: TOTAL | E35: =Classic!F74 -> 13385.5344 | F35: =Classic!G74 -> 10361.2208 | G35: =Classic!H74 -> 6981.9064 | H35: =Classic!I74 -> 4895.884 | I35: =Classic!J74 -> 3457.0312
C38: Tarifas en US $ - Efectivas a partir del 1ro de enero de 2023
C39: Este presupuesto solamente tiene carácter informativo y en ningún momento expresa compromiso legal para suministrarle cobertura de seguro. La emisión de una póliza de seguro Bupa está sujeta a todas las evaluaciones de riesgo por parte de Bupa y a la recepción de todos los pagos de prima requeridos.
D43: PLAN 1 | E43: PLAN 2 | F43: PLAN 3 | G43: PLAN 4 | H43: PLAN 5 | I43: PLAN 6
B44: Dentro del pais de residencia | D44: 250 | E44: 250 | F44: 1000 | G44: 5000 | H44: 10000 | I44: 20000
B45: Fuera del pais de residencia | D45: 1000 | E45: 5000 | F45: 10000 | G45: 5000 | H45: 10000 | I45: 20000
C48: TARIFAS ANUALES
B49: Essential Care | D49: ='Essential Care'!E42 -> 7321.44 | E49: ='Essential Care'!F42 -> 7067.2 | F49: ='Essential Care'!G42 -> 6600.16 | G49: ='Essential Care'!H42 -> 4618.88 | H49: ='Essential Care'!I42 -> 3505.6 | I49: ='Essential Care'!J42 -> 2640.96
C52: TARIFAS SEMIANUALES
B53: Essential Care | C53: 1ra. Cuota | D53: ='Essential Care'!E55 -> 3919.8432 | E53: ='Essential Care'!F55 -> 3785.096 | F53: ='Essential Care'!G55 -> 3537.5648 | G53: ='Essential Care'!H55 -> 2487.4864 | H53: ='Essential Care'!I55 -> 1897.448 | I53: ='Essential Care'!J55 -> 1439.1888
C54: 2da. Cuota | D54: ='Essential Care'!E56 -> 3835.8432 | E54: ='Essential Care'!F56 -> 3701.096 | F54: ='Essential Care'!G56 -> 3453.5648 | G54: ='Essential Care'!H56 -> 2403.4864 | H54: ='Essential Care'!I56 -> 1813.448 | I54: ='Essential Care'!J56 -> 1355.1888
C55: TOTAL | D55: ='Essential Care'!E57 -> 7755.6864 | E55: ='Essential Care'!F57 -> 7486.192 | F55: ='Essential Care'!G57 -> 6991.1296 | G55: ='Essential Care'!H57 -> 4890.9728 | H55: ='Essential Care'!I57 -> 3710.896 | I55: ='Essential Care'!J57 -> 2794.3776
C57: TARIFAS TRIMESTRALES
B58: Essential Care | C58: 1ra. Cuota | D58: ='Essential Care'!E71 -> 2074.296 | E58: ='Essential Care'!F71 -> 2004.38 | F58: ='Essential Care'!G71 -> 1875.944 | G58: ='Essential Care'!H71 -> 1331.092 | H58: ='Essential Care'!I71 -> 1024.94 | I58: ='Essential Care'!J71 -> 787.164
C59: 2da. a 4ta. Cuota | D59: ='Essential Care'!E72 -> 1990.296 | E59: ='Essential Care'!F72 -> 1920.38 | F59: ='Essential Care'!G72 -> 1791.944 | G59: ='Essential Care'!H72 -> 1247.092 | H59: ='Essential Care'!I72 -> 940.94 | I59: ='Essential Care'!J72 -> 703.164
C60: TOTAL | D60: ='Essential Care'!E73 -> 8045.184 | E60: ='Essential Care'!F73 -> 7765.52 | F60: ='Essential Care'!G73 -> 7251.776 | G60: ='Essential Care'!H73 -> 5072.368 | H60: ='Essential Care'!I73 -> 3847.76 | I60: ='Essential Care'!J73 -> 2896.656
C63: Tarifas en US $ - Efectivas a partir del 22 de julio de 2023
C64: Este presupuesto solamente tiene carácter informativo y en ningún momento expresa compromiso legal para suministrarle cobertura de seguro. La emisión de una póliza de seguro Bupa está sujeta a todas las evaluaciones de riesgo por parte de Bupa y a la recepción de todos los pagos de prima requeridos.
C67: Bupa Guatemala, Compañía de Seguros, S.A.
C68: 5 Avenida 5-55 Zona 14, Europlaza World Business Center, Torre 3, Nivel 11, Guatemala
C69: PBX: 2300-8000 / www.bupasalud.com / servicioguatemala@bupalatinamerica.com

Sheet Tablas (hidden)
A2: BUPA COMPLETE GUATEMALA | J2: FACTOR SEMESTRAL : | L2: 0.53
A3: TARIFAS ANUALES | I3: OK | J3: FACTOR TRIMESTRAL : | L3: 0.275
A4: EDAD
C5: DW1 | D5: DW2 | E5: DW3 | F5: DW4 | G5: DW5 | H5: DW6
A6: 18 | B6: - 24 | C6: 12140 | D6: 7386 | E6: 5058 | F6: 3643 | G6: 2581 | H6: 1973 | J6: Descuento (15%) | L6: 0.85
A7: 25 | B7: - 29 | C7: 12747 | D7: 7738 | E7: 5616 | F7: 4048 | G7: 2833 | H7: 2176
A8: 30 | B8: - 34 | C8: 13305 | D8: 8094 | E8: 6019 | F8: 4504 | G8: 3442 | H8: 2633
A9: 35 | B9: - 39 | C9: 14871 | D9: 9056 | E9: 6728 | F9: 5058 | G9: 3846 | H9: 2936
A10: 40 | B10: - 44 | C10: 16844 | D10: 10520 | E10: 7386 | F10: 5616 | G10: 4250 | H10: 3238
A11: 45 | B11: - 49 | C11: 18817 | D11: 11736 | E11: 8246 | F11: 6272 | G11: 4756 | H11: 3643
A12: 50 | B12: - 54 | C12: 24836 | D12: 15326 | E12: 10876 | F12: 8246 | G12: 6780 | H12: 5213
A13: 55 | B13: - 59 | C13: 26403 | D13: 16337 | E13: 11583 | F13: 8801 | G13: 7233 | H13: 5514
A14: 60 | C14: 28022 | D14: 17754 | E14: 12596 | F14: 10015 | G14: 8600 | H14: 6929
A15: 61 | C15: 30096 | D15: 19068 | E15: 13507 | F15: 10724 | G15: 9258 | H15: 7437
A16: 62 | C16: 32928 | D16: 20889 | E16: 14771 | F16: 11736 | G16: 10115 | H16: 8143
A17: 63 | C17: 35003 | D17: 22205 | E17: 15730 | F17: 12495 | G17: 10775 | H17: 8649
A18: 64 | C18: 37886 | D18: 24026 | E18: 16996 | F18: 13507 | G18: 11635 | H18: 9359
A19: 65 | C19: 39704 | D19: 31412 | E19: 22205 | F19: 17097 | G19: 15529 | H19: 13201
A20: 66 | C20: 41475 | D20: 36519 | E20: 25797 | F20: 19878 | G20: 18059 | H20: 15326
A21: 67 | C21: 45320 | D21: 39858 | E21: 28174 | F21: 21698 | G21: 19727 | H21: 16743
A22: 68 | C22: 50125 | D22: 44156 | E22: 31207 | F22: 24026 | G22: 21851 | H22: 18564
A23: 69 | C23: 55130 | D23: 48558 | E23: 34294 | F23: 26454 | G23: 24026 | H23: 20383
A24: 70 | C24: 65249 | D24: 59785 | E24: 41778 | F24: 31106 | G24: 27971 | H24: 23975
A25: 71 | C25: 67829 | D25: 62112 | E25: 43400 | F25: 32322 | G25: 29085 | H25: 24937
A26: 72 | C26: 69750 | D26: 63882 | E26: 44662 | F26: 33232 | G26: 29893 | H26: 25645
A27: 73 | C27: 72279 | D27: 66209 | E27: 46282 | F27: 34447 | G27: 31005 | H27: 26606
A28: 74 | C28: 73593 | D28: 67424 | E28: 47091 | F28: 35104 | G28: 31562 | H28: 27061
A29: 75 | B29: o más | C29: 76781 | D29: 70357 | E29: 49163 | F29: 36619 | G29: 32928 | H29: 28224
A30: 1 | B30: Hijo | C30: 2270 | D30: 4097 | E30: 1872 | F30: 1469 | G30: 1266 | H30: 911
A31: 2 | B31: Hijos | C31: 3566 | D31: 6424 | E31: 2985 | F31: 2329 | G31: 1973 | H31: 1469
A32: 3 | B32: Hijos o más | C32: 5193 | D32: 9359 | E32: 4351 | F32: 3442 | G32: 2883 | H32: 2127
A33: 1 | B33: Rider Comp. Maternidad | C33: 0 | D33: 0 | E33: 0 | F33: 225 | G33: 225 | H33: 225
A34: 1 | B34: Transplante de organos | C34: 0 | D34: 0 | E34: 0 | F34: 0 | G34: 0 | H34: 0
A36: TARIFAS SEMESTRALES
A37: EDAD
C38: DW1 | D38: DW2 | E38: DW3 | F38: DW4 | G38: DW5 | H38: DW6
A39: 18 | B39: - 24 | C39: 4135.59 | D39: 3251.55 | E39: 2226.53 | F39: 1603.78 | G39: 1135.79 | H39: 868.14
A40: 25 | B40: - 29 | C40: 4342.29 | D40: 3406.84 | E40: 2472.45 | F40: 1781.86 | G40: 1247.09 | H40: 957.71
A41: 30 | B41: - 34 | C41: 4532.03 | D41: 3563.19 | E41: 2650 | F41: 1982.73 | G41: 1514.74 | H41: 1158.58
A42: 35 | B42: - 39 | C42: 5066.27 | D42: 3986.66 | E42: 2961.64 | F42: 2226.53 | G42: 1692.82 | H42: 1292.14
A43: 40 | B43: - 44 | C43: 5738.31 | D43: 4631.67 | E43: 3251.55 | F43: 2472.45 | G43: 1870.37 | H43: 1425.17
A44: 45 | B44: - 49 | C44: 6410.35 | D44: 5166.97 | E44: 3629.97 | F44: 2761.3 | G44: 2093.5 | H44: 1603.78
A45: 50 | B45: - 54 | C45: 8460.92 | D45: 6747.43 | E45: 4788.02 | F45: 3629.97 | G45: 2984.43 | H45: 2294.37
A46: 55 | B46: - 59 | C46: 8994.63 | D46: 7192.63 | E46: 5099.66 | F46: 3874.83 | G46: 3184.24 | H46: 2427.4
A47: 60 | C47: 9546.36 | D47: 7816.44 | E47: 5545.39 | F47: 4409.07 | G47: 3785.79 | H47: 3050.68
A48: 61 | C48: 10252.85 | D48: 8395.2 | E48: 5946.6 | F48: 4721.24 | G48: 4075.7 | H48: 3273.81
A49: 62 | C49: 11217.98 | D49: 9197.09 | E49: 6503.1 | F49: 5166.97 | G49: 4453.06 | H49: 3584.92
A50: 63 | C50: 11924.47 | D50: 9775.85 | E50: 6925.51 | F50: 5500.87 | G50: 4743.5 | H50: 3808.05
A51: 64 | C51: 12906.56 | D51: 10577.74 | E51: 7482.54 | F51: 5946.6 | G51: 5122.45 | H51: 4120.22
A52: 65 | C52: 13526.66 | D52: 13829.82 | E52: 9775.85 | F52: 7527.06 | G52: 6837 | H52: 5811.98
A53: 66 | C53: 14129.8 | D53: 16078.61 | E53: 11357.37 | F53: 8751.89 | G53: 7950.53 | H53: 6747.43
A54: 67 | C54: 15439.43 | D54: 17548.83 | E54: 12404.12 | F54: 9553.25 | G54: 8685.11 | H54: 7371.24
A55: 68 | C55: 17076.6 | D55: 19440.93 | E55: 13739.72 | F55: 10577.74 | G55: 9620.56 | H55: 8173.13
A56: 69 | C56: 18782.14 | D56: 21379.14 | E56: 15098.64 | F56: 11646.75 | G56: 10577.74 | H56: 8973.96
A57: 70 | C57: 22228.73 | D57: 26322.45 | E57: 18394.18 | F57: 13695.2 | G57: 12315.08 | H57: 10555.48
A58: 71 | C58: 23107.47 | D58: 27346.94 | E58: 19108.09 | F58: 14230.5 | G58: 12805.33 | H58: 10978.95
A59: 72 | C59: 23762.55 | D59: 28126.57 | E59: 19663.53 | F59: 14631.18 | G59: 13160.96 | H59: 11290.59
A60: 73 | C60: 24623.8 | D60: 29150.53 | E60: 20376.91 | F60: 15165.95 | G60: 13651.21 | H60: 11713.53
A61: 74 | C61: 25071.65 | D61: 29685.83 | E61: 20733.07 | F61: 15455.33 | G61: 13896.07 | H61: 11914.4
A62: 75 | B62: o más | C62: 26157.62 | D62: 30976.91 | E62: 21645.73 | F62: 16122.6 | G62: 14497.62 | H62: 12426.38
A63: 1 | B63: Hijo | C63: 1395.49 | D63: 1135.79 | E63: 824.15 | F63: 646.07 | G63: 557.03 | H63: 400.68
A64: 2 | B64: Hijos | C64: 2188.37 | D64: 1803.06 | E64: 1313.87 | F64: 1025.02 | G64: 868.14 | H64: 646.07
A65: 3 | B65: Hijos o más | C65: 3187.95 | D65: 2627.21 | E65: 1915.42 | F65: 1514.74 | G65: 1268.82 | H65: 935.98
A66: 1 | B66: Rider Comp. Maternidad | C66: =+C33*$L$2 -> 0 | D66: 0 | E66: 0 | F66: 119.25 | G66: 119.25 | H66: 119.25
A67: 1 | B67: Transplante de organos | C67: 0 | D67: 0 | E67: 0 | F67: 0 | G67: 0 | H67: 0
A69: DIAMOND (LATINAMERICA ONLY)
A70: TARIFAS ANUALES
A71: EDAD
C72: DL1 | D72: DL2 | E72: DL3 | F72: DL4 | G72: DL5 | H72: DL6
A73: 18 | B73: - 24 | C73: 4794 | D73: 2952 | E73: 1949 | F73: 1401 | G73: 993 | H73: 779
A74: 25 | B74: - 29 | C74: 5028 | D74: 3097 | E74: 2156 | F74: 1553 | G74: 1103 | H74: 867
A75: 30 | B75: - 34 | C75: 5200 | D75: 3223 | E75: 2312 | F75: 1743 | G75: 1322 | H75: 1041
A76: 35 | B76: - 39 | C76: 5816 | D76: 3609 | E76: 2590 | F76: 1951 | G76: 1483 | H76: 1168
A77: 40 | B77: - 44 | C77: 6733 | D77: 4186 | E77: 2831 | F77: 2168 | G77: 1630 | H77: 1284
A78: 45 | B78: - 49 | C78: 7517 | D78: 4680 | E78: 3168 | F78: 2425 | G78: 1824 | H78: 1436
A79: 50 | B79: - 54 | C79: 9772 | D79: 5991 | E79: 4158 | F79: 3164 | G79: 2578 | H79: 2033
A80: 55 | B80: - 59 | C80: 10394 | D80: 6374 | E80: 4426 | F80: 3365 | G80: 2744 | H80: 2164
A81: 60 | C81: 11056 | D81: 6945 | E81: 4828 | F81: 3871 | G81: 3307 | H81: 2688
A82: 61 | C82: 11876 | D82: 7463 | E82: 5187 | F82: 4159 | G82: 3555 | H82: 2886
A83: 62 | C83: 12994 | D83: 8172 | E83: 5684 | F83: 4557 | G83: 3892 | H83: 3162
A84: 63 | C84: 13812 | D84: 8687 | E84: 6042 | F84: 4844 | G84: 4139 | H84: 3362
A85: 64 | C85: 14936 | D85: 9396 | E85: 6539 | F85: 5242 | G85: 4475 | H85: 3639
A86: 65 | C86: 15651 | D86: 12288 | E86: 8530 | F86: 6629 | G86: 5974 | H86: 5139
A87: 66 | C87: 16363 | D87: 14275 | E87: 9911 | F87: 7703 | G87: 6942 | H87: 5968
A88: 67 | C88: 17867 | D88: 15595 | E88: 10826 | F88: 8416 | G88: 7581 | H88: 6521
A89: 68 | C89: 19780 | D89: 17268 | E89: 11986 | F89: 9320 | G89: 8398 | H89: 7220
A90: 69 | C90: 21758 | D90: 18999 | E90: 13190 | F90: 10254 | G90: 9240 | H90: 7945
A91: 70 | C91: 25748 | D91: 23384 | E91: 16061 | F91: 12071 | G91: 10768 | H91: 9345
A92: 71 | C92: 26759 | D92: 24303 | E92: 16691 | F92: 12545 | G92: 11190 | H92: 9716
A93: 72 | C93: 27512 | D93: 24990 | E93: 17164 | F93: 12900 | G93: 11507 | H93: 9987
A94: 73 | C94: 28525 | D94: 25911 | E94: 17793 | F94: 13375 | G94: 11931 | H94: 10356
A95: 74 | C95: 29026 | D95: 26368 | E95: 18111 | F95: 13609 | G95: 12143 | H95: 10540
A96: 75 | B96: o más | C96: 30287 | D96: 27515 | E96: 18898 | F96: 14204 | G96: 12670 | H96: 11001
A97: 1 | B97: Hijo | C97: 1660 | D97: 1027 | E97: 758 | F97: 629 | G97: 527 | H97: 413
A98: 2 | B98: Hijos | C98: 2608 | D98: 1634 | E98: 1204 | F98: 999 | G98: 841 | H98: 656
A99: 3 | B99: Hijos o más | C99: 3798 | D99: 2395 | E99: 1766 | F99: 1465 | G99: 1234 | H99: 961
A100: 1 | B100: Rider Comp. Maternidad | C100: 0 | D100: 0 | E100: 0 | F100: 225 | G100: 225 | H100: 225
A101: 1 | B101: Transplante de organos | C101: 0 | D101: 0 | E101: 0 | F101: 0 | G101: 0 | H101: 0
A103: TARIFAS SEMESTRALES
A104: EDAD
C105: DL1 | D105: DL2 | E105: DL3 | F105: DL4 | G105: DL5 | H105: DL6
A106: 18 | B106: - 24 | C106: =+C73*$L$2 -> 2540.82 | D106: 1564.56 | E106: 1032.97 | F106: 742.53 | G106: 526.29 | H106: 412.87
A107: 25 | B107: - 29 | C107: 2664.84 | D107: 1641.41 | E107: 1142.68 | F107: 823.09 | G107: 584.59 | H107: 459.51
A108: 30 | B108: - 34 | C108: 2756 | D108: 1708.19 | E108: 1225.36 | F108: 923.79 | G108: 700.66 | H108: 551.73
A109: 35 | B109: - 39 | C109: 3082.48 | D109: 1912.77 | E109: 1372.7 | F109: 1034.03 | G109: 785.99 | H109: 619.04
A110: 40 | B110: - 44 | C110: 3568.49 | D110: 2218.58 | E110: 1500.43 | F110: 1149.04 | G110: 863.9 | H110: 680.52
A111: 45 | B111: - 49 | C111: 3984.01 | D111: 2480.4 | E111: 1679.04 | F111: 1285.25 | G111: 966.72 | H111: 761.08
A112: 50 | B112: - 54 | C112: 5179.16 | D112: 3175.23 | E112: 2203.74 | F112: 1676.92 | G112: 1366.34 | H112: 1077.49
A113: 55 | B113: - 59 | C113: 5508.82 | D113: 3378.22 | E113: 2345.78 | F113: 1783.45 | G113: 1454.32 | H113: 1146.92
A114: 60 | C114: 5859.68 | D114: 3680.85 | E114: 2558.84 | F114: 2051.63 | G114: 1752.71 | H114: 1424.64
A115: 61 | C115: 6294.28 | D115: 3955.39 | E115: 2749.11 | F115: 2204.27 | G115: 1884.15 | H115: 1529.58
A116: 62 | C116: =+C83*$L$2 -> 6886.82 | D116: 4331.16 | E116: 3012.52 | F116: 2415.21 | G116: 2062.76 | H116: 1675.86
A117: 63 | C117: 7320.36 | D117: 4604.11 | E117: 3202.26 | F117: 2567.32 | G117: 2193.67 | H117: 1781.86
A118: 64 | C118: 7916.08 | D118: 4979.88 | E118: 3465.67 | F118: 2778.26 | G118: 2371.75 | H118: 1928.67
A119: 65 | C119: 8295.03 | D119: 6512.64 | E119: 4520.9 | F119: 3513.37 | G119: 3166.22 | H119: 2723.67
A120: 66 | C120: 8672.39 | D120: 7565.75 | E120: 5252.83 | F120: 4082.59 | G120: 3679.26 | H120: 3163.04
A121: 67 | C121: 9469.51 | D121: 8265.35 | E121: 5737.78 | F121: 4460.48 | G121: 4017.93 | H121: 3456.13
A122: 68 | C122: 10483.4 | D122: 9152.04 | E122: 6352.58 | F122: 4939.6 | G122: 4450.94 | H122: 3826.6
A123: 69 | C123: 11531.74 | D123: 10069.47 | E123: 6990.7 | F123: 5434.62 | G123: 4897.2 | H123: 4210.85
A124: 70 | C124: 13646.44 | D124: 12393.52 | E124: 8512.33 | F124: 6397.63 | G124: 5707.04 | H124: 4952.85
A125: 71 | C125: 14182.27 | D125: 12880.59 | E125: 8846.23 | F125: 6648.85 | G125: 5930.7 | H125: 5149.48
A126: 72 | C126: =+C93*$L$2 -> 14581.36 | D126: 13244.7 | E126: 9096.92 | F126: 6837 | G126: 6098.71 | H126: 5293.11
A127: 73 | C127: 15118.25 | D127: 13732.83 | E127: 9430.29 | F127: 7088.75 | G127: 6323.43 | H127: 5488.68
A128: 74 | C128: 15383.78 | D128: 13975.04 | E128: 9598.83 | F128: 7212.77 | G128: 6435.79 | H128: 5586.2
A129: 75 | B129: o más | C129: 16052.11 | D129: 14582.95 | E129: 10015.94 | F129: 7528.12 | G129: 6715.1 | H129: 5830.53
A130: 1 | B130: Hijo | C130: 879.8 | D130: 544.31 | E130: 401.74 | F130: 333.37 | G130: 279.31 | H130: 218.89
A131: 2 | B131: Hijos | C131: 1382.24 | D131: 866.02 | E131: 638.12 | F131: 529.47 | G131: 445.73 | H131: 347.68
A132: 3 | B132: Hijos o más | C132: 2012.94 | D132: 1269.35 | E132: 935.98 | F132: 776.45 | G132: 654.02 | H132: 509.33
A133: 1 | B133: Rider Comp. Maternidad | C133: 0 | D133: 0 | E133: 0 | F133: 119.25 | G133: 119.25 | H133: 119.25
A134: 1 | B134: Transplante de organos | C134: 0 | D134: 0 | E134: 0 | F134: 0 | G134: 0 | H134: 0
A136: BUPA SECURE GUATEMALA
A137: TARIFAS ANUALES
A138: EDAD | I138: OK
C139: CW1 | D139: CW2 | E139: CW3 | F139: CW4 | G139: CW5 | H139: CW6
A140: 18 | B140: - 24 | C140: 4209 | D140: 3551 | E140: 2780 | F140: 2126 | G140: 1854 | H140: 1389
A141: 25 | B141: - 29 | C141: 4670 | D141: 3900 | E141: 3127 | F141: 2393 | G141: 2047 | H141: 1545
A142: 30 | B142: - 34 | C142: 5368 | D142: 4479 | E142: 3668 | F142: 2780 | G142: 2393 | H142: 1816
A143: 35 | B143: - 39 | C143: 5945 | D143: 4943 | E143: 4131 | F143: 3090 | G143: 2664 | H143: 2006
A144: 40 | B144: - 44 | C144: 6718 | D144: 5520 | E144: 4711 | F144: 3477 | G144: 3012 | H144: 2279
A145: 45 | B145: - 49 | C145: 7798 | D145: 6371 | E145: 5520 | F145: 4054 | G145: 3514 | H145: 2626
A146: 50 | B146: - 54 | C146: 8531 | D146: 6951 | E146: 6062 | F146: 4441 | G146: 3823 | H146: 2896
A147: 55 | B147: - 59 | C147: 10038 | D147: 8184 | E147: 7256 | F147: 5251 | G147: 4556 | H147: 3399
A148: 60 | C148: 10617 | D148: 8571 | E148: 7760 | F148: 5560 | G148: 4827 | H148: 3591
A149: 61 | C149: 11929 | D149: 9652 | E149: 8725 | F149: 6294 | G149: 5406 | H149: 4054
A150: 62 | C150: 13280 | D150: 10731 | E150: 9690 | F150: 6989 | G150: 6024 | H150: 4517
A151: 63 | C151: 14592 | D151: 11776 | E151: 10655 | F151: 7683 | G151: 6641 | H151: 4980
A152: 64 | C152: 15943 | D152: 12855 | E152: 11658 | F152: 8377 | G152: 7256 | H152: 5444
A153: 65 | C153: 15984 | D153: 12894 | E153: 11735 | F153: 8455 | G153: 7298 | H153: 5444
A154: 66 | C154: 16059 | D154: 12894 | E154: 11852 | F154: 8493 | G154: 7335 | H154: 5444
A155: 67 | C155: 17833 | D155: 14321 | E155: 13202 | F155: 9420 | G155: 8145 | H155: 6062
A156: 68 | C156: 19611 | D156: 15749 | E156: 14514 | F156: 10384 | G156: 8957 | H156: 6681
A157: 69 | C157: 20538 | D157: 16483 | E157: 15172 | F157: 10849 | G157: 9381 | H157: 6989
A158: 70 | C158: 20653 | D158: 16522 | E158: 15404 | F158: 10965 | G158: 9457 | H158: 7026
A159: 71 | C159: 23277 | D159: 18570 | E159: 17373 | F159: 12353 | G159: 10655 | H159: 7916
A160: 72 | C160: 25865 | D160: 20653 | E160: 19303 | F160: 13703 | G160: 11813 | H160: 8801
A161: 73 | C161: 28451 | D161: 22739 | E161: 21231 | F161: 15095 | G161: 13009 | H161: 9690
A162: 74 | C162: 31036 | D162: 24784 | E162: 23162 | F162: 16483 | G162: 14205 | H162: 10579
A163: 75 | B163: o más | C163: 33893 | D163: 27023 | E163: 25402 | F163: 18027 | G163: 15519 | H163: 11544
A164: 1 | B164: Hijo | C164: 1892 | D164: 1698 | E164: 1005 | F164: 850 | G164: 734 | H164: 542
A165: 2 | B165: Hijos | C165: 3127 | D165: 2896 | E165: 1508 | F165: 1352 | G165: 1159 | H165: 850
A166: 3 | B166: Hijos o más | C166: 4556 | D166: 4246 | E166: 2163 | F166: 1969 | G166: 1698 | H166: 1275
A167: 1 | B167: Rider Comp. Maternidad | C167: 0 | D167: 225 | E167: 225 | F167: 225 | G167: 225 | H167: 225
A168: 1 | B168: Transplante de organos | C168: 0 | D168: 0 | E168: 0 | F168: 0 | G168: 0 | H168: 0
A170: TARIFAS SEMESTRALES | I170: PENDIENTE
A171: EDAD
C172: CW1 | D172: CW2 | E172: CW3 | F172: CW4 | G172: CW5 | H172: CW6
A173: 18 | B173: - 24 | C173: 1408.21 | D173: 1562.97 | E173: 1223.77 | F173: 935.45 | G173: 816.2 | H173: 611.09
A174: 25 | B174: - 29 | C174: 1562.97 | D174: 1716.67 | E174: 1376.41 | F174: 1053.11 | G174: 901 | H174: 679.99
A175: 30 | B175: - 34 | C175: 1795.64 | D175: 1971.6 | E175: 1614.38 | F175: 1223.77 | G175: 1053.11 | H175: 799.24
A176: 35 | B176: - 39 | C176: 1989.09 | D176: 2175.65 | E176: 1818.43 | F176: 1359.98 | G176: 1172.89 | H176: 882.98
A177: 40 | B177: - 44 | C177: 2247.73 | D177: 2430.05 | E177: 2073.89 | F177: 1530.11 | G177: 1325.53 | H177: 1002.76
A178: 45 | B178: - 49 | C178: 2609.19 | D178: 2804.76 | E178: 2430.05 | F178: 1784.51 | G178: 1546.54 | H178: 1155.93
A179: 50 | B179: - 54 | C179: 2854.58 | D179: 3059.69 | E179: 2668.55 | F179: 1954.64 | G179: 1682.75 | H179: 1274.65
A180: 55 | B180: - 59 | C180: 3358.61 | D180: 3602.94 | E180: 3194.31 | F180: 2311.33 | G180: 2005.52 | H180: 1496.19
A181: 60 | C181: 3552.59 | D181: 3773.07 | E181: 3415.85 | F181: 2447.54 | G181: 2124.77 | H181: 1580.99
A182: 61 | C182: 3991.43 | D182: 4249.01 | E182: 3840.91 | F182: 2770.84 | G182: 2379.7 | H182: 1784.51
A183: 62 | C183: 4443.52 | D183: 4724.42 | E183: 4265.97 | F183: 3076.65 | G183: 2651.59 | H183: 1988.56
A184: 63 | C184: 4882.89 | D184: 5184.46 | E184: 4691.03 | F184: 3382.46 | G184: 2923.48 | H184: 2192.08
A185: 64 | C185: 5334.98 | D185: 5659.34 | E185: 5132.52 | F185: 3687.74 | G185: 3194.31 | H185: 2396.66
A186: 65 | C186: 5348.23 | D186: 5676.83 | E186: 5166.44 | F186: 3722.19 | G186: 3212.86 | H186: 2396.66
A187: 66 | C187: 5373.67 | D187: 5676.83 | E187: 5217.85 | F187: 3739.15 | G187: 3229.29 | H187: 2396.66
A188: 67 | C188: 5967.8 | D188: 6304.88 | E188: 5812.51 | F188: 4147.25 | G188: 3585.98 | H188: 2668.55
A189: 68 | C189: 6562.46 | D189: 6933.99 | E189: 6390.21 | F189: 4571.78 | G189: 3943.2 | H189: 2940.97
A190: 69 | C190: 6872.51 | D190: 7256.76 | E190: 6679.59 | F190: 4776.36 | G190: 4129.76 | H190: 3076.65
A191: 70 | C191: 6911.2 | D191: 7274.25 | E191: 6781.88 | F191: 4827.24 | G191: 4163.68 | H191: 3093.08
A192: 71 | C192: 7789.41 | D192: 8175.78 | E192: 7648.43 | F192: 5438.33 | G192: 4691.03 | H192: 3484.75
A193: 72 | C193: 8654.9 | D193: 9093.21 | E193: 8498.55 | F193: 6032.99 | G193: 5200.89 | H193: 3874.83
A194: 73 | C194: 9520.39 | D194: 10011.17 | E194: 9347.61 | F194: 6645.67 | G194: 5727.18 | H194: 4265.97
A195: 74 | C195: 10385.88 | D195: 10911.64 | E195: 10197.73 | F195: 7256.76 | G195: 6254 | H195: 4657.11
A196: 75 | B196: o más | C196: 11342 | D196: 11897.44 | E196: 11183.53 | F196: 7936.75 | G196: 6832.23 | H196: 5082.17
A197: 1 | B197: Hijo | C197: 632.82 | D197: 747.3 | E197: 442.02 | F197: 373.65 | G197: 322.77 | H197: 237.97
A198: 2 | B198: Hijos | C198: 1046.22 | D198: 1274.65 | E198: 663.56 | F198: 594.66 | G198: 509.86 | H198: 373.65
A199: 3 | B199: Hijos o más | C199: 1524.28 | D199: 1869.31 | E199: 951.88 | F199: 866.55 | G199: 747.3 | H199: 560.74
A200: 1 | B200: Rider Comp. Maternidad | C200: =+C167*$L$2 -> 0 | D200: 119.25 | E200: 119.25 | F200: 119.25 | G200: 119.25 | H200: 119.25
A201: 1 | B201: Transplante de organos | C201: 0 | D201: 0 | E201: 0 | F201: 0 | G201: 0 | H201: 0
A203: COMPLETE (LATINAMERICA ONLY)
A204: TARIFAS ANUALES
A205: EDAD
C206: CL1 | D206: CL2 | E206: CL3 | F206: CL4 | G206: CL5 | H206: CL6
A207: 18 | B207: - 24 | C207: 4108 | D207: 2493 | E207: 1711 | F207: 1222 | G207: 864 | H207: 656
... 914 more rows
